{"text_format":"1","workbook":"xlsx","n_sheets":2,"sheets":["STATISTICS","ММГГ"],"not_rendered":{"charts":0,"images":0,"macros":1,"external_links":0,"defined_names":3,"comments":0,"pivot_tables":0},"unopened":[],"bounds":{"document_bytes":16777216,"sheet_cells":100000,"rows_first":2000,"rows_last":500,"rows_between":2000,"halvings":0,"cell_chars":16384,"cell_head_chars":4096},"cells_cut":0,"cells_raw":0,"read":"whole","date_system":"1900"}

{"sheet":"STATISTICS","index":0,"n_rows":26,"n_cols":44,"rows_kept":26,"cut":false,"hidden":false,"merged":[[5,42,6,42],[5,43,6,43],[5,41,6,41],[5,37,5,38],[4,37,4,38],[5,39,6,39],[5,40,6,40],[4,31,4,36],[5,31,5,32],[5,33,5,34],[5,35,5,36],[4,11,4,17],[5,14,5,15],[5,28,5,30],[5,24,5,25],[4,22,4,27],[5,16,6,16],[5,17,6,17],[5,22,5,23],[5,18,6,18],[5,26,5,27],[5,13,6,13],[5,12,6,12],[4,19,4,21],[5,19,6,19],[5,20,6,20],[5,21,6,21],[5,3,6,3],[5,4,6,4],[5,5,6,5],[5,6,6,6],[5,11,6,11],[5,7,6,7]]}
[]
[null,null,null,"Месяц","Ноябрь"]
[null,null,null,"Год",2016]
[]
[null,null,null,null,null,null,null,null,null,null,null,"INBOUND STATS",null,null,null,null,null,null,null,"OUTBOUND STATS",null,null,"CLAIMS CHECK STATS",null,null,null,null,null,null,null,null,"LETTERS CHECK STATS",null,null,null,null,null,"CLAIMS + LETTERS"]
[null,null,null,null,null,null,null,null,null,null,null,"Принято","Размещено","Принято и размещено","Ошибки / Mistakes",null,"% ошибок приема","% ошибок размещения","Итого % ошиб прин / разм","Подобрано","Запаковано","Подобрано и запаковано","Недопоставка",null,"Пересорт",null,"Излишек",null,"Некорректные действия",null,null,"Недопоставка",null,"Пересорт",null,"Излишек",null,"Общ подтверждено ошибок",null,"% ошибок подбора","% ошибок упаковки","Итого % ошиб подб / упак","Общее количество произведенных операций","Общий % ошибок"]
[null,null,null,null,null,null,null,null,null,null,null,null,null,null,"Прием","Размещение",null,null,null,null,null,null,"Подбор","Упаковка","Подбор","Упаковка","Подбор","Упаковка","Подбор","Упаковка","Подбор","Подбор","Упаковка","Подбор","Упаковка","Подбор","Упаковка","Подбор","Упаковка"]
[]
[null,null,null,null,null,null,null,null,"Итого",null,null,{"$f":"SUBTOTAL(109,Таблица_LOGINS.accdb[Receiving])","v":{"$error":"#REF!"}},{"$f":"SUBTOTAL(109,Таблица_LOGINS.accdb[Putaway])","v":{"$error":"#REF!"}},{"$f":"SUM($L$9:$M$9)","v":{"$error":"#REF!"}},{"$f":"SUBTOTAL(109,Таблица_LOGINS.accdb[Mist Receiving])","v":{"$error":"#REF!"}},{"$f":"SUBTOTAL(109,Таблица_LOGINS.accdb[[Mist Putaway ]])","v":{"$error":"#REF!"}},{"$f":"SUBTOTAL(109,Таблица_LOGINS.accdb[% mistake receiving])","v":0},{"$f":"SUBTOTAL(109,Таблица_LOGINS.accdb[% mistake putaway])","v":0},{"$f":"SUM($Q$9:$R$9)","v":0},{"$f":"SUBTOTAL(109,Таблица_LOGINS.accdb[Picked])","v":{"$error":"#REF!"}},{"$f":"SUBTOTAL(109,Таблица_LOGINS.accdb[Packed])","v":{"$error":"#REF!"}},{"$f":"SUM($T$9:$U$9)","v":{"$error":"#REF!"}},{"$f":"SUBTOTAL(109,Таблица_LOGINS.accdb[Picked ZG1R])","v":{"$error":"#REF!"}},{"$f":"SUBTOTAL(109,Таблица_LOGINS.accdb[Packed ZA1R/ZB1R])","v":{"$error":"#REF!"}},{"$f":"SUBTOTAL(109,Таблица_LOGINS.accdb[Picked ZG1R])","v":{"$error":"#REF!"}},{"$f":"SUBTOTAL(109,Таблица_LOGINS.accdb[Packed ZG1R])","v":{"$error":"#REF!"}},{"$f":"SUBTOTAL(109,Таблица_LOGINS.accdb[Picked ZC3R])","v":{"$error":"#REF!"}},{"$f":"SUBTOTAL(109,Таблица_LOGINS.accdb[Packed ZC3R])","v":{"$error":"#REF!"}},0,0,0,{"$f":"SUBTOTAL(109,Таблица_LOGINS.accdb[Picked ZA1R/ZB1R (LCH)])","v":{"$error":"#REF!"}},{"$f":"SUBTOTAL(109,Таблица_LOGINS.accdb[Packed ZA1R/ZB1R (LCH)])","v":{"$error":"#REF!"}},{"$f":"SUBTOTAL(109,Таблица_LOGINS.accdb[Picked ZG1R (LCH)])","v":{"$error":"#REF!"}},{"$f":"SUBTOTAL(109,Таблица_LOGINS.accdb[Packed ZG1R (LCH)])","v":{"$error":"#REF!"}},{"$f":"SUBTOTAL(109,Таблица_LOGINS.accdb[Picked ZC3R (LCH)])","v":{"$error":"#REF!"}},{"$f":"SUBTOTAL(109,Таблица_LOGINS.accdb[Packed ZC3R (LCH)])","v":{"$error":"#REF!"}},{"$f":"SUBTOTAL(109,Таблица_LOGINS.accdb[Mistakes of picking (conf)])","v":{"$error":"#REF!"}},{"$f":"SUBTOTAL(109,Таблица_LOGINS.accdb[Mistakes of packing (conf)])","v":{"$error":"#REF!"}},{"$f":"SUBTOTAL(109,Таблица_LOGINS.accdb[% mistake picking])","v":0},{"$f":"SUBTOTAL(109,Таблица_LOGINS.accdb[% mistake packing])","v":0},{"$f":"SUM($AN$9:$AO$9)","v":0},{"$f":"SUM($N$9,$V$9)","v":{"$error":"#REF!"}},{"$f":"SUM($AP$9,$S$9)","v":0}]
[null,"Таб №","Фирма","Зона работы","Смена №","Сотрудник","Логин","Логин SAP","Должность","Тип работ","Уволен да/нет","Receiving","Putaway","Total receiving & putaway","Mist Receiving","Mist Putaway ","% mistake receiving","% mistake putaway","TOTAL Inb","Picked","Packed","Total Picked & Packed","Picked ZA1R/ZB1R","Packed ZA1R/ZB1R","Picked ZG1R","Packed ZG1R","Picked ZC3R","Packed ZC3R","Oth PICKING","Oth PACKING","SAP","Picked ZA1R/ZB1R (LCH)","Packed ZA1R/ZB1R (LCH)","Picked ZG1R (LCH)","Packed ZG1R (LCH)","Picked ZC3R (LCH)","Packed ZC3R (LCH)","Mistakes of picking (conf)","Mistakes of packing (conf)","% mistake picking","% mistake packing","% pick & pack","Total Done","Total %"]
[null,1562,"Neovia","TRANSPORT",7,"Бессонова Антонина Викторовна",null,"DVRX5BA","Транспортный координатор","Приемка/Размещение",false,{"$f":"SUMIFS(#REF!,#REF!,E$2,#REF!,E$3,#REF!,Таблица_LOGINS.accdb[[#This Row],[Логин]])+SUMIFS(#REF!,#REF!,E$2,#REF!,E$3,#REF!,Таблица_LOGINS.accdb[[#This Row],[Логин SAP]])","v":{"$error":"#REF!"}},{"$f":"SUMIFS(#REF!,#REF!,E$2,#REF!,E$3,#REF!,Таблица_LOGINS.accdb[[#This Row],[Логин]])+SUMIFS(#REF!,#REF!,E$2,#REF!,E$3,#REF!,Таблица_LOGINS.accdb[[#This Row],[Логин SAP]])","v":{"$error":"#REF!"}},{"$f":"SUM(Таблица_LOGINS.accdb[[#This Row],[Receiving]:[Putaway]])","v":{"$error":"#REF!"}},{"$f":"SUMIFS(#REF!,#REF!,E$2,#REF!,E$3,#REF!,Таблица_LOGINS.accdb[[#This Row],[Логин]])+SUMIFS(#REF!,#REF!,E$2,#REF!,E$3,#REF!,Таблица_LOGINS.accdb[[#This Row],[Логин SAP]])","v":{"$error":"#REF!"}},{"$f":"SUMIFS(#REF!,#REF!,E$2,#REF!,E$3,#REF!,Таблица_LOGINS.accdb[[#This Row],[Логин]])+SUMIFS(#REF!,#REF!,E$2,#REF!,E$3,#REF!,Таблица_LOGINS.accdb[[#This Row],[Логин SAP]])","v":{"$error":"#REF!"}},{"$f":"IFERROR(Таблица_LOGINS.accdb[[#This Row],[Mist Receiving]]/Таблица_LOGINS.accdb[[#This Row],[Receiving]],0)","v":0},{"$f":"IFERROR(Таблица_LOGINS.accdb[[#This Row],[Mist Putaway ]]/Таблица_LOGINS.accdb[[#This Row],[Putaway]],0)","v":0},{"$f":"SUM(Таблица_LOGINS.accdb[[#This Row],[% mistake receiving]:[% mistake putaway]])","v":0},{"$f":"SUMIFS(#REF!,#REF!,E$2,#REF!,E$3,#REF!,Таблица_LOGINS.accdb[[#This Row],[Логин]])+SUMIFS(#REF!,#REF!,E$2,#REF!,E$3,#REF!,Таблица_LOGINS.accdb[[#This Row],[Логин SAP]])","v":{"$error":"#REF!"}},{"$f":"SUMIFS(#REF!,#REF!,E$2,#REF!,E$3,#REF!,Таблица_LOGINS.accdb[[#This Row],[Логин]])+SUMIFS(#REF!,#REF!,E$2,#REF!,E$3,#REF!,Таблица_LOGINS.accdb[[#This Row],[Логин SAP]])","v":{"$error":"#REF!"}},{"$f":"SUM(Таблица_LOGINS.accdb[[#This Row],[Picked]:[Packed]])","v":{"$error":"#REF!"}},{"$f":"SUMIFS(#REF!,#REF!,E$2,#REF!,E$3,#REF!,Таблица_LOGINS.accdb[[#This Row],[Логин]],#REF!,\"ZA1R\")+SUMIFS(#REF!,#REF!,E$2,#REF!,E$3,#REF!,Таблица_LOGINS.accdb[[#This Row],[Логин]],#REF!,\"ZB1R\")+SUMIFS(#REF!,#REF!,E$2,#REF!,E$3,#REF!,Таблица_LOGINS.accdb[[#This Row],[Логин SAP]],#REF!,\"ZA1R\")+SUMIFS(#REF!,#REF!,E$2,#REF!,E$3,#REF!,Таблица_LOGINS.accdb[[#This Row],[Логин SAP]],#REF!,\"ZB1R\")","v":{"$error":"#REF!"}},{"$f":"SUMIFS(#REF!,#REF!,E$2,#REF!,E$3,#REF!,Таблица_LOGINS.accdb[[#This Row],[Логин]],#REF!,\"ZB1R\")+SUMIFS(#REF!,#REF!,E$2,#REF!,E$3,#REF!,Таблица_LOGINS.accdb[[#This Row],[Логин SAP]],#REF!,\"ZB1R\")+SUMIFS(#REF!,#REF!,E$2,#REF!,E$3,#REF!,Таблица_LOGINS.accdb[[#This Row],[Логин]],#REF!,\"ZA1R\")+SUMIFS(#REF!,#REF!,E$2,#REF!,E$3,#REF!,Таблица_LOGINS.accdb[[#This Row],[Логин SAP]],#REF!,\"ZA1R\")","v":{"$error":"#REF!"}},{"$f":"SUMIFS(#REF!,#REF!,E$2,#REF!,E$3,#REF!,Таблица_LOGINS.accdb[[#This Row],[Логин]],#REF!,\"ZG1R\")+SUMIFS(#REF!,#REF!,E$2,#REF!,E$3,#REF!,Таблица_LOGINS.accdb[[#This Row],[Логин SAP]],#REF!,\"ZG1R\")","v":{"$error":"#REF!"}},{"$f":"SUMIFS(#REF!,#REF!,E$2,#REF!,E$3,#REF!,Таблица_LOGINS.accdb[[#This Row],[Логин]],#REF!,\"ZG1R\")+SUMIFS(#REF!,#REF!,E$2,#REF!,E$3,#REF!,Таблица_LOGINS.accdb[[#This Row],[Логин SAP]],#REF!,\"ZG1R\")","v":{"$error":"#REF!"}},{"$f":"SUMIFS(#REF!,#REF!,E$2,#REF!,E$3,#REF!,Таблица_LOGINS.accdb[[#This Row],[Логин]],#REF!,\"ZC3R\")+SUMIFS(#REF!,#REF!,E$2,#REF!,E$3,#REF!,Таблица_LOGINS.accdb[[#This Row],[Логин SAP]],#REF!,\"ZC3R\")","v":{"$error":"#REF!"}},{"$f":"SUMIFS(#REF!,#REF!,E$2,#REF!,E$3,#REF!,Таблица_LOGINS.accdb[[#This Row],[Логин]],#REF!,\"ZC3R\")+SUMIFS(#REF!,#REF!,E$2,#REF!,E$3,#REF!,Таблица_LOGINS.accdb[[#This Row],[Логин SAP]],#REF!,\"ZC3R\")","v":{"$error":"#REF!"}},null,null,null,{"$f":"SUMIFS(#REF!,#REF!,E$2,#REF!,E$3,#REF!,Таблица_LOGINS.accdb[[#This Row],[Логин]],#REF!,\"ZA1R\")+SUMIFS(#REF!,#REF!,E$2,#REF!,E$3,#REF!,Таблица_LOGINS.accdb[[#This Row],[Логин SAP]],#REF!,\"ZA1R\")+SUMIFS(#REF!,#REF!,E$2,#REF!,E$3,#REF!,Таблица_LOGINS.accdb[[#This Row],[Логин]],#REF!,\"ZB1R\")+SUMIFS(#REF!,#REF!,E$2,#REF!,E$3,#REF!,Таблица_LOGINS.accdb[[#This Row],[Логин SAP]],#REF!,\"ZB1R\")","v":{"$error":"#REF!"}},{"$f":"SUMIFS(#REF!,#REF!,E$2,#REF!,E$3,#REF!,Таблица_LOGINS.accdb[[#This Row],[Логин]],#REF!,\"ZB1R\")+SUMIFS(#REF!,#REF!,E$2,#REF!,E$3,#REF!,Таблица_LOGINS.accdb[[#This Row],[Логин SAP]],#REF!,\"ZB1R\")+SUMIFS(#REF!,#REF!,E$2,#REF!,E$3,#REF!,Таблица_LOGINS.accdb[[#This Row],[Логин]],#REF!,\"ZA1R\")+SUMIFS(#REF!,#REF!,E$2,#REF!,E$3,#REF!,Таблица_LOGINS.accdb[[#This Row],[Логин SAP]],#REF!,\"ZA1R\")","v":{"$error":"#REF!"}},{"$f":"SUMIFS(#REF!,#REF!,E$2,#REF!,E$3,#REF!,Таблица_LOGINS.accdb[[#This Row],[Логин]],#REF!,\"ZG1R\")+SUMIFS(#REF!,#REF!,E$2,#REF!,E$3,#REF!,Таблица_LOGINS.accdb[[#This Row],[Логин SAP]],#REF!,\"ZG1R\")","v":{"$error":"#REF!"}},{"$f":"SUMIFS(#REF!,#REF!,E$2,#REF!,E$3,#REF!,Таблица_LOGINS.accdb[[#This Row],[Логин]],#REF!,\"ZG1R\")+SUMIFS(#REF!,#REF!,E$2,#REF!,E$3,#REF!,Таблица_LOGINS.accdb[[#This Row],[Логин SAP]],#REF!,\"ZG1R\")","v":{"$error":"#REF!"}},{"$f":"SUMIFS(#REF!,#REF!,E$2,#REF!,E$3,#REF!,Таблица_LOGINS.accdb[[#This Row],[Логин]],#REF!,\"ZC3R\")+SUMIFS(#REF!,#REF!,E$2,#REF!,E$3,#REF!,Таблица_LOGINS.accdb[[#This Row],[Логин SAP]],#REF!,\"ZC3R\")","v":{"$error":"#REF!"}},{"$f":"SUMIFS(#REF!,#REF!,E$2,#REF!,E$3,#REF!,Таблица_LOGINS.accdb[[#This Row],[Логин]],#REF!,\"ZC3R\")+SUMIFS(#REF!,#REF!,E$2,#REF!,E$3,#REF!,Таблица_LOGINS.accdb[[#This Row],[Логин SAP]],#REF!,\"ZC3R\")","v":{"$error":"#REF!"}},{"$f":"SUM(W11,Y11,AA11,AF11,AH11,AJ11)","v":{"$error":"#REF!"}},{"$f":"SUM(X11,Z11,AB11,AG11,AI11,AK11)","v":{"$error":"#REF!"}},{"$f":"IFERROR(Таблица_LOGINS.accdb[[#This Row],[Mistakes of picking (conf)]]/Таблица_LOGINS.accdb[[#This Row],[Picked]],0)","v":0},{"$f":"IFERROR(Таблица_LOGINS.accdb[[#This Row],[Mistakes of packing (conf)]]/Таблица_LOGINS.accdb[[#This Row],[Packed]],0)","v":0},{"$f":"SUM(Таблица_LOGINS.accdb[[#This Row],[% mistake picking]:[% mistake packing]])","v":0},{"$f":"SUM(V11,N11)","v":{"$error":"#REF!"}},{"$f":"SUM(AP11,S11)","v":0}]
[null,1718,"Neovia","TRANSPORT",7,"Фокин Павел",null,"DVRXFPN","Транспортный координатор","Транспорт",false,{"$f":"SUMIFS(#REF!,#REF!,E$2,#REF!,E$3,#REF!,Таблица_LOGINS.accdb[[#This Row],[Логин]])+SUMIFS(#REF!,#REF!,E$2,#REF!,E$3,#REF!,Таблица_LOGINS.accdb[[#This Row],[Логин SAP]])","v":{"$error":"#REF!"}},{"$f":"SUMIFS(#REF!,#REF!,E$2,#REF!,E$3,#REF!,Таблица_LOGINS.accdb[[#This Row],[Логин]])+SUMIFS(#REF!,#REF!,E$2,#REF!,E$3,#REF!,Таблица_LOGINS.accdb[[#This Row],[Логин SAP]])","v":{"$error":"#REF!"}},{"$f":"SUM(Таблица_LOGINS.accdb[[#This Row],[Receiving]:[Putaway]])","v":{"$error":"#REF!"}},{"$f":"SUMIFS(#REF!,#REF!,E$2,#REF!,E$3,#REF!,Таблица_LOGINS.accdb[[#This Row],[Логин]])+SUMIFS(#REF!,#REF!,E$2,#REF!,E$3,#REF!,Таблица_LOGINS.accdb[[#This Row],[Логин SAP]])","v":{"$error":"#REF!"}},{"$f":"SUMIFS(#REF!,#REF!,E$2,#REF!,E$3,#REF!,Таблица_LOGINS.accdb[[#This Row],[Логин]])+SUMIFS(#REF!,#REF!,E$2,#REF!,E$3,#REF!,Таблица_LOGINS.accdb[[#This Row],[Логин SAP]])","v":{"$error":"#REF!"}},{"$f":"IFERROR(Таблица_LOGINS.accdb[[#This Row],[Mist Receiving]]/Таблица_LOGINS.accdb[[#This Row],[Receiving]],0)","v":0},{"$f":"IFERROR(Таблица_LOGINS.accdb[[#This Row],[Mist Putaway ]]/Таблица_LOGINS.accdb[[#This Row],[Putaway]],0)","v":0},{"$f":"SUM(Таблица_LOGINS.accdb[[#This Row],[% mistake receiving]:[% mistake putaway]])","v":0},{"$f":"SUMIFS(#REF!,#REF!,E$2,#REF!,E$3,#REF!,Таблица_LOGINS.accdb[[#This Row],[Логин]])+SUMIFS(#REF!,#REF!,E$2,#REF!,E$3,#REF!,Таблица_LOGINS.accdb[[#This Row],[Логин SAP]])","v":{"$error":"#REF!"}},{"$f":"SUMIFS(#REF!,#REF!,E$2,#REF!,E$3,#REF!,Таблица_LOGINS.accdb[[#This Row],[Логин]])+SUMIFS(#REF!,#REF!,E$2,#REF!,E$3,#REF!,Таблица_LOGINS.accdb[[#This Row],[Логин SAP]])","v":{"$error":"#REF!"}},{"$f":"SUM(Таблица_LOGINS.accdb[[#This Row],[Picked]:[Packed]])","v":{"$error":"#REF!"}},{"$f":"SUMIFS(#REF!,#REF!,E$2,#REF!,E$3,#REF!,Таблица_LOGINS.accdb[[#This Row],[Логин]],#REF!,\"ZA1R\")+SUMIFS(#REF!,#REF!,E$2,#REF!,E$3,#REF!,Таблица_LOGINS.accdb[[#This Row],[Логин]],#REF!,\"ZB1R\")+SUMIFS(#REF!,#REF!,E$2,#REF!,E$3,#REF!,Таблица_LOGINS.accdb[[#This Row],[Логин SAP]],#REF!,\"ZA1R\")+SUMIFS(#REF!,#REF!,E$2,#REF!,E$3,#REF!,Таблица_LOGINS.accdb[[#This Row],[Логин SAP]],#REF!,\"ZB1R\")","v":{"$error":"#REF!"}},{"$f":"SUMIFS(#REF!,#REF!,E$2,#REF!,E$3,#REF!,Таблица_LOGINS.accdb[[#This Row],[Логин]],#REF!,\"ZB1R\")+SUMIFS(#REF!,#REF!,E$2,#REF!,E$3,#REF!,Таблица_LOGINS.accdb[[#This Row],[Логин SAP]],#REF!,\"ZB1R\")+SUMIFS(#REF!,#REF!,E$2,#REF!,E$3,#REF!,Таблица_LOGINS.accdb[[#This Row],[Логин]],#REF!,\"ZA1R\")+SUMIFS(#REF!,#REF!,E$2,#REF!,E$3,#REF!,Таблица_LOGINS.accdb[[#This Row],[Логин SAP]],#REF!,\"ZA1R\")","v":{"$error":"#REF!"}},{"$f":"SUMIFS(#REF!,#REF!,E$2,#REF!,E$3,#REF!,Таблица_LOGINS.accdb[[#This Row],[Логин]],#REF!,\"ZG1R\")+SUMIFS(#REF!,#REF!,E$2,#REF!,E$3,#REF!,Таблица_LOGINS.accdb[[#This Row],[Логин SAP]],#REF!,\"ZG1R\")","v":{"$error":"#REF!"}},{"$f":"SUMIFS(#REF!,#REF!,E$2,#REF!,E$3,#REF!,Таблица_LOGINS.accdb[[#This Row],[Логин]],#REF!,\"ZG1R\")+SUMIFS(#REF!,#REF!,E$2,#REF!,E$3,#REF!,Таблица_LOGINS.accdb[[#This Row],[Логин SAP]],#REF!,\"ZG1R\")","v":{"$error":"#REF!"}},{"$f":"SUMIFS(#REF!,#REF!,E$2,#REF!,E$3,#REF!,Таблица_LOGINS.accdb[[#This Row],[Логин]],#REF!,\"ZC3R\")+SUMIFS(#REF!,#REF!,E$2,#REF!,E$3,#REF!,Таблица_LOGINS.accdb[[#This Row],[Логин SAP]],#REF!,\"ZC3R\")","v":{"$error":"#REF!"}},{"$f":"SUMIFS(#REF!,#REF!,E$2,#REF!,E$3,#REF!,Таблица_LOGINS.accdb[[#This Row],[Логин]],#REF!,\"ZC3R\")+SUMIFS(#REF!,#REF!,E$2,#REF!,E$3,#REF!,Таблица_LOGINS.accdb[[#This Row],[Логин SAP]],#REF!,\"ZC3R\")","v":{"$error":"#REF!"}},null,null,null,{"$f":"SUMIFS(#REF!,#REF!,E$2,#REF!,E$3,#REF!,Таблица_LOGINS.accdb[[#This Row],[Логин]],#REF!,\"ZA1R\")+SUMIFS(#REF!,#REF!,E$2,#REF!,E$3,#REF!,Таблица_LOGINS.accdb[[#This Row],[Логин SAP]],#REF!,\"ZA1R\")+SUMIFS(#REF!,#REF!,E$2,#REF!,E$3,#REF!,Таблица_LOGINS.accdb[[#This Row],[Логин]],#REF!,\"ZB1R\")+SUMIFS(#REF!,#REF!,E$2,#REF!,E$3,#REF!,Таблица_LOGINS.accdb[[#This Row],[Логин SAP]],#REF!,\"ZB1R\")","v":{"$error":"#REF!"}},{"$f":"SUMIFS(#REF!,#REF!,E$2,#REF!,E$3,#REF!,Таблица_LOGINS.accdb[[#This Row],[Логин]],#REF!,\"ZB1R\")+SUMIFS(#REF!,#REF!,E$2,#REF!,E$3,#REF!,Таблица_LOGINS.accdb[[#This Row],[Логин SAP]],#REF!,\"ZB1R\")+SUMIFS(#REF!,#REF!,E$2,#REF!,E$3,#REF!,Таблица_LOGINS.accdb[[#This Row],[Логин]],#REF!,\"ZA1R\")+SUMIFS(#REF!,#REF!,E$2,#REF!,E$3,#REF!,Таблица_LOGINS.accdb[[#This Row],[Логин SAP]],#REF!,\"ZA1R\")","v":{"$error":"#REF!"}},{"$f":"SUMIFS(#REF!,#REF!,E$2,#REF!,E$3,#REF!,Таблица_LOGINS.accdb[[#This Row],[Логин]],#REF!,\"ZG1R\")+SUMIFS(#REF!,#REF!,E$2,#REF!,E$3,#REF!,Таблица_LOGINS.accdb[[#This Row],[Логин SAP]],#REF!,\"ZG1R\")","v":{"$error":"#REF!"}},{"$f":"SUMIFS(#REF!,#REF!,E$2,#REF!,E$3,#REF!,Таблица_LOGINS.accdb[[#This Row],[Логин]],#REF!,\"ZG1R\")+SUMIFS(#REF!,#REF!,E$2,#REF!,E$3,#REF!,Таблица_LOGINS.accdb[[#This Row],[Логин SAP]],#REF!,\"ZG1R\")","v":{"$error":"#REF!"}},{"$f":"SUMIFS(#REF!,#REF!,E$2,#REF!,E$3,#REF!,Таблица_LOGINS.accdb[[#This Row],[Логин]],#REF!,\"ZC3R\")+SUMIFS(#REF!,#REF!,E$2,#REF!,E$3,#REF!,Таблица_LOGINS.accdb[[#This Row],[Логин SAP]],#REF!,\"ZC3R\")","v":{"$error":"#REF!"}},{"$f":"SUMIFS(#REF!,#REF!,E$2,#REF!,E$3,#REF!,Таблица_LOGINS.accdb[[#This Row],[Логин]],#REF!,\"ZC3R\")+SUMIFS(#REF!,#REF!,E$2,#REF!,E$3,#REF!,Таблица_LOGINS.accdb[[#This Row],[Логин SAP]],#REF!,\"ZC3R\")","v":{"$error":"#REF!"}},{"$error":"#REF!"},{"$error":"#REF!"},{"$f":"IFERROR(Таблица_LOGINS.accdb[[#This Row],[Mistakes of picking (conf)]]/Таблица_LOGINS.accdb[[#This Row],[Picked]],0)","v":0},{"$f":"IFERROR(Таблица_LOGINS.accdb[[#This Row],[Mistakes of packing (conf)]]/Таблица_LOGINS.accdb[[#This Row],[Packed]],0)","v":0},{"$f":"SUM(Таблица_LOGINS.accdb[[#This Row],[% mistake picking]:[% mistake packing]])","v":0},{"$error":"#REF!"},0]
[null,1719,"Neovia","TRANSPORT",7,"Белов Евгений",null,"DVRXBLW","Транспортный координатор","Транспорт",false,{"$f":"SUMIFS(#REF!,#REF!,E$2,#REF!,E$3,#REF!,Таблица_LOGINS.accdb[[#This Row],[Логин]])+SUMIFS(#REF!,#REF!,E$2,#REF!,E$3,#REF!,Таблица_LOGINS.accdb[[#This Row],[Логин SAP]])","v":{"$error":"#REF!"}},{"$f":"SUMIFS(#REF!,#REF!,E$2,#REF!,E$3,#REF!,Таблица_LOGINS.accdb[[#This Row],[Логин]])+SUMIFS(#REF!,#REF!,E$2,#REF!,E$3,#REF!,Таблица_LOGINS.accdb[[#This Row],[Логин SAP]])","v":{"$error":"#REF!"}},{"$f":"SUM(Таблица_LOGINS.accdb[[#This Row],[Receiving]:[Putaway]])","v":{"$error":"#REF!"}},{"$f":"SUMIFS(#REF!,#REF!,E$2,#REF!,E$3,#REF!,Таблица_LOGINS.accdb[[#This Row],[Логин]])+SUMIFS(#REF!,#REF!,E$2,#REF!,E$3,#REF!,Таблица_LOGINS.accdb[[#This Row],[Логин SAP]])","v":{"$error":"#REF!"}},{"$f":"SUMIFS(#REF!,#REF!,E$2,#REF!,E$3,#REF!,Таблица_LOGINS.accdb[[#This Row],[Логин]])+SUMIFS(#REF!,#REF!,E$2,#REF!,E$3,#REF!,Таблица_LOGINS.accdb[[#This Row],[Логин SAP]])","v":{"$error":"#REF!"}},{"$f":"IFERROR(Таблица_LOGINS.accdb[[#This Row],[Mist Receiving]]/Таблица_LOGINS.accdb[[#This Row],[Receiving]],0)","v":0},{"$f":"IFERROR(Таблица_LOGINS.accdb[[#This Row],[Mist Putaway ]]/Таблица_LOGINS.accdb[[#This Row],[Putaway]],0)","v":0},{"$f":"SUM(Таблица_LOGINS.accdb[[#This Row],[% mistake receiving]:[% mistake putaway]])","v":0},{"$f":"SUMIFS(#REF!,#REF!,E$2,#REF!,E$3,#REF!,Таблица_LOGINS.accdb[[#This Row],[Логин]])+SUMIFS(#REF!,#REF!,E$2,#REF!,E$3,#REF!,Таблица_LOGINS.accdb[[#This Row],[Логин SAP]])","v":{"$error":"#REF!"}},{"$f":"SUMIFS(#REF!,#REF!,E$2,#REF!,E$3,#REF!,Таблица_LOGINS.accdb[[#This Row],[Логин]])+SUMIFS(#REF!,#REF!,E$2,#REF!,E$3,#REF!,Таблица_LOGINS.accdb[[#This Row],[Логин SAP]])","v":{"$error":"#REF!"}},{"$f":"SUM(Таблица_LOGINS.accdb[[#This Row],[Picked]:[Packed]])","v":{"$error":"#REF!"}},{"$f":"SUMIFS(#REF!,#REF!,E$2,#REF!,E$3,#REF!,Таблица_LOGINS.accdb[[#This Row],[Логин]],#REF!,\"ZA1R\")+SUMIFS(#REF!,#REF!,E$2,#REF!,E$3,#REF!,Таблица_LOGINS.accdb[[#This Row],[Логин]],#REF!,\"ZB1R\")+SUMIFS(#REF!,#REF!,E$2,#REF!,E$3,#REF!,Таблица_LOGINS.accdb[[#This Row],[Логин SAP]],#REF!,\"ZA1R\")+SUMIFS(#REF!,#REF!,E$2,#REF!,E$3,#REF!,Таблица_LOGINS.accdb[[#This Row],[Логин SAP]],#REF!,\"ZB1R\")","v":{"$error":"#REF!"}},{"$f":"SUMIFS(#REF!,#REF!,E$2,#REF!,E$3,#REF!,Таблица_LOGINS.accdb[[#This Row],[Логин]],#REF!,\"ZB1R\")+SUMIFS(#REF!,#REF!,E$2,#REF!,E$3,#REF!,Таблица_LOGINS.accdb[[#This Row],[Логин SAP]],#REF!,\"ZB1R\")+SUMIFS(#REF!,#REF!,E$2,#REF!,E$3,#REF!,Таблица_LOGINS.accdb[[#This Row],[Логин]],#REF!,\"ZA1R\")+SUMIFS(#REF!,#REF!,E$2,#REF!,E$3,#REF!,Таблица_LOGINS.accdb[[#This Row],[Логин SAP]],#REF!,\"ZA1R\")","v":{"$error":"#REF!"}},{"$f":"SUMIFS(#REF!,#REF!,E$2,#REF!,E$3,#REF!,Таблица_LOGINS.accdb[[#This Row],[Логин]],#REF!,\"ZG1R\")+SUMIFS(#REF!,#REF!,E$2,#REF!,E$3,#REF!,Таблица_LOGINS.accdb[[#This Row],[Логин SAP]],#REF!,\"ZG1R\")","v":{"$error":"#REF!"}},{"$f":"SUMIFS(#REF!,#REF!,E$2,#REF!,E$3,#REF!,Таблица_LOGINS.accdb[[#This Row],[Логин]],#REF!,\"ZG1R\")+SUMIFS(#REF!,#REF!,E$2,#REF!,E$3,#REF!,Таблица_LOGINS.accdb[[#This Row],[Логин SAP]],#REF!,\"ZG1R\")","v":{"$error":"#REF!"}},{"$f":"SUMIFS(#REF!,#REF!,E$2,#REF!,E$3,#REF!,Таблица_LOGINS.accdb[[#This Row],[Логин]],#REF!,\"ZC3R\")+SUMIFS(#REF!,#REF!,E$2,#REF!,E$3,#REF!,Таблица_LOGINS.accdb[[#This Row],[Логин SAP]],#REF!,\"ZC3R\")","v":{"$error":"#REF!"}},{"$f":"SUMIFS(#REF!,#REF!,E$2,#REF!,E$3,#REF!,Таблица_LOGINS.accdb[[#This Row],[Логин]],#REF!,\"ZC3R\")+SUMIFS(#REF!,#REF!,E$2,#REF!,E$3,#REF!,Таблица_LOGINS.accdb[[#This Row],[Логин SAP]],#REF!,\"ZC3R\")","v":{"$error":"#REF!"}},null,null,null,{"$f":"SUMIFS(#REF!,#REF!,E$2,#REF!,E$3,#REF!,Таблица_LOGINS.accdb[[#This Row],[Логин]],#REF!,\"ZA1R\")+SUMIFS(#REF!,#REF!,E$2,#REF!,E$3,#REF!,Таблица_LOGINS.accdb[[#This Row],[Логин SAP]],#REF!,\"ZA1R\")+SUMIFS(#REF!,#REF!,E$2,#REF!,E$3,#REF!,Таблица_LOGINS.accdb[[#This Row],[Логин]],#REF!,\"ZB1R\")+SUMIFS(#REF!,#REF!,E$2,#REF!,E$3,#REF!,Таблица_LOGINS.accdb[[#This Row],[Логин SAP]],#REF!,\"ZB1R\")","v":{"$error":"#REF!"}},{"$f":"SUMIFS(#REF!,#REF!,E$2,#REF!,E$3,#REF!,Таблица_LOGINS.accdb[[#This Row],[Логин]],#REF!,\"ZB1R\")+SUMIFS(#REF!,#REF!,E$2,#REF!,E$3,#REF!,Таблица_LOGINS.accdb[[#This Row],[Логин SAP]],#REF!,\"ZB1R\")+SUMIFS(#REF!,#REF!,E$2,#REF!,E$3,#REF!,Таблица_LOGINS.accdb[[#This Row],[Логин]],#REF!,\"ZA1R\")+SUMIFS(#REF!,#REF!,E$2,#REF!,E$3,#REF!,Таблица_LOGINS.accdb[[#This Row],[Логин SAP]],#REF!,\"ZA1R\")","v":{"$error":"#REF!"}},{"$f":"SUMIFS(#REF!,#REF!,E$2,#REF!,E$3,#REF!,Таблица_LOGINS.accdb[[#This Row],[Логин]],#REF!,\"ZG1R\")+SUMIFS(#REF!,#REF!,E$2,#REF!,E$3,#REF!,Таблица_LOGINS.accdb[[#This Row],[Логин SAP]],#REF!,\"ZG1R\")","v":{"$error":"#REF!"}},{"$f":"SUMIFS(#REF!,#REF!,E$2,#REF!,E$3,#REF!,Таблица_LOGINS.accdb[[#This Row],[Логин]],#REF!,\"ZG1R\")+SUMIFS(#REF!,#REF!,E$2,#REF!,E$3,#REF!,Таблица_LOGINS.accdb[[#This Row],[Логин SAP]],#REF!,\"ZG1R\")","v":{"$error":"#REF!"}},{"$f":"SUMIFS(#REF!,#REF!,E$2,#REF!,E$3,#REF!,Таблица_LOGINS.accdb[[#This Row],[Логин]],#REF!,\"ZC3R\")+SUMIFS(#REF!,#REF!,E$2,#REF!,E$3,#REF!,Таблица_LOGINS.accdb[[#This Row],[Логин SAP]],#REF!,\"ZC3R\")","v":{"$error":"#REF!"}},{"$f":"SUMIFS(#REF!,#REF!,E$2,#REF!,E$3,#REF!,Таблица_LOGINS.accdb[[#This Row],[Логин]],#REF!,\"ZC3R\")+SUMIFS(#REF!,#REF!,E$2,#REF!,E$3,#REF!,Таблица_LOGINS.accdb[[#This Row],[Логин SAP]],#REF!,\"ZC3R\")","v":{"$error":"#REF!"}},{"$error":"#REF!"},{"$error":"#REF!"},{"$f":"IFERROR(Таблица_LOGINS.accdb[[#This Row],[Mistakes of picking (conf)]]/Таблица_LOGINS.accdb[[#This Row],[Picked]],0)","v":0},{"$f":"IFERROR(Таблица_LOGINS.accdb[[#This Row],[Mistakes of packing (conf)]]/Таблица_LOGINS.accdb[[#This Row],[Packed]],0)","v":0},{"$f":"SUM(Таблица_LOGINS.accdb[[#This Row],[% mistake picking]:[% mistake packing]])","v":0},{"$error":"#REF!"},0]
[null,1564,"Neovia","TRANSPORT",7,"Герасимова Алина Дмитриевна",null,"DVRXGER","Транспортный Диспетчер","Приемка/Размещение",false,{"$f":"SUMIFS(#REF!,#REF!,E$2,#REF!,E$3,#REF!,Таблица_LOGINS.accdb[[#This Row],[Логин]])+SUMIFS(#REF!,#REF!,E$2,#REF!,E$3,#REF!,Таблица_LOGINS.accdb[[#This Row],[Логин SAP]])","v":{"$error":"#REF!"}},{"$f":"SUMIFS(#REF!,#REF!,E$2,#REF!,E$3,#REF!,Таблица_LOGINS.accdb[[#This Row],[Логин]])+SUMIFS(#REF!,#REF!,E$2,#REF!,E$3,#REF!,Таблица_LOGINS.accdb[[#This Row],[Логин SAP]])","v":{"$error":"#REF!"}},{"$f":"SUM(Таблица_LOGINS.accdb[[#This Row],[Receiving]:[Putaway]])","v":{"$error":"#REF!"}},{"$f":"SUMIFS(#REF!,#REF!,E$2,#REF!,E$3,#REF!,Таблица_LOGINS.accdb[[#This Row],[Логин]])+SUMIFS(#REF!,#REF!,E$2,#REF!,E$3,#REF!,Таблица_LOGINS.accdb[[#This Row],[Логин SAP]])","v":{"$error":"#REF!"}},{"$f":"SUMIFS(#REF!,#REF!,E$2,#REF!,E$3,#REF!,Таблица_LOGINS.accdb[[#This Row],[Логин]])+SUMIFS(#REF!,#REF!,E$2,#REF!,E$3,#REF!,Таблица_LOGINS.accdb[[#This Row],[Логин SAP]])","v":{"$error":"#REF!"}},{"$f":"IFERROR(Таблица_LOGINS.accdb[[#This Row],[Mist Receiving]]/Таблица_LOGINS.accdb[[#This Row],[Receiving]],0)","v":0},{"$f":"IFERROR(Таблица_LOGINS.accdb[[#This Row],[Mist Putaway ]]/Таблица_LOGINS.accdb[[#This Row],[Putaway]],0)","v":0},{"$f":"SUM(Таблица_LOGINS.accdb[[#This Row],[% mistake receiving]:[% mistake putaway]])","v":0},{"$f":"SUMIFS(#REF!,#REF!,E$2,#REF!,E$3,#REF!,Таблица_LOGINS.accdb[[#This Row],[Логин]])+SUMIFS(#REF!,#REF!,E$2,#REF!,E$3,#REF!,Таблица_LOGINS.accdb[[#This Row],[Логин SAP]])","v":{"$error":"#REF!"}},{"$f":"SUMIFS(#REF!,#REF!,E$2,#REF!,E$3,#REF!,Таблица_LOGINS.accdb[[#This Row],[Логин]])+SUMIFS(#REF!,#REF!,E$2,#REF!,E$3,#REF!,Таблица_LOGINS.accdb[[#This Row],[Логин SAP]])","v":{"$error":"#REF!"}},{"$f":"SUM(Таблица_LOGINS.accdb[[#This Row],[Picked]:[Packed]])","v":{"$error":"#REF!"}},{"$f":"SUMIFS(#REF!,#REF!,E$2,#REF!,E$3,#REF!,Таблица_LOGINS.accdb[[#This Row],[Логин]],#REF!,\"ZA1R\")+SUMIFS(#REF!,#REF!,E$2,#REF!,E$3,#REF!,Таблица_LOGINS.accdb[[#This Row],[Логин]],#REF!,\"ZB1R\")+SUMIFS(#REF!,#REF!,E$2,#REF!,E$3,#REF!,Таблица_LOGINS.accdb[[#This Row],[Логин SAP]],#REF!,\"ZA1R\")+SUMIFS(#REF!,#REF!,E$2,#REF!,E$3,#REF!,Таблица_LOGINS.accdb[[#This Row],[Логин SAP]],#REF!,\"ZB1R\")","v":{"$error":"#REF!"}},{"$f":"SUMIFS(#REF!,#REF!,E$2,#REF!,E$3,#REF!,Таблица_LOGINS.accdb[[#This Row],[Логин]],#REF!,\"ZB1R\")+SUMIFS(#REF!,#REF!,E$2,#REF!,E$3,#REF!,Таблица_LOGINS.accdb[[#This Row],[Логин SAP]],#REF!,\"ZB1R\")+SUMIFS(#REF!,#REF!,E$2,#REF!,E$3,#REF!,Таблица_LOGINS.accdb[[#This Row],[Логин]],#REF!,\"ZA1R\")+SUMIFS(#REF!,#REF!,E$2,#REF!,E$3,#REF!,Таблица_LOGINS.accdb[[#This Row],[Логин SAP]],#REF!,\"ZA1R\")","v":{"$error":"#REF!"}},{"$f":"SUMIFS(#REF!,#REF!,E$2,#REF!,E$3,#REF!,Таблица_LOGINS.accdb[[#This Row],[Логин]],#REF!,\"ZG1R\")+SUMIFS(#REF!,#REF!,E$2,#REF!,E$3,#REF!,Таблица_LOGINS.accdb[[#This Row],[Логин SAP]],#REF!,\"ZG1R\")","v":{"$error":"#REF!"}},{"$f":"SUMIFS(#REF!,#REF!,E$2,#REF!,E$3,#REF!,Таблица_LOGINS.accdb[[#This Row],[Логин]],#REF!,\"ZG1R\")+SUMIFS(#REF!,#REF!,E$2,#REF!,E$3,#REF!,Таблица_LOGINS.accdb[[#This Row],[Логин SAP]],#REF!,\"ZG1R\")","v":{"$error":"#REF!"}},{"$f":"SUMIFS(#REF!,#REF!,E$2,#REF!,E$3,#REF!,Таблица_LOGINS.accdb[[#This Row],[Логин]],#REF!,\"ZC3R\")+SUMIFS(#REF!,#REF!,E$2,#REF!,E$3,#REF!,Таблица_LOGINS.accdb[[#This Row],[Логин SAP]],#REF!,\"ZC3R\")","v":{"$error":"#REF!"}},{"$f":"SUMIFS(#REF!,#REF!,E$2,#REF!,E$3,#REF!,Таблица_LOGINS.accdb[[#This Row],[Логин]],#REF!,\"ZC3R\")+SUMIFS(#REF!,#REF!,E$2,#REF!,E$3,#REF!,Таблица_LOGINS.accdb[[#This Row],[Логин SAP]],#REF!,\"ZC3R\")","v":{"$error":"#REF!"}},null,null,null,{"$f":"SUMIFS(#REF!,#REF!,E$2,#REF!,E$3,#REF!,Таблица_LOGINS.accdb[[#This Row],[Логин]],#REF!,\"ZA1R\")+SUMIFS(#REF!,#REF!,E$2,#REF!,E$3,#REF!,Таблица_LOGINS.accdb[[#This Row],[Логин SAP]],#REF!,\"ZA1R\")+SUMIFS(#REF!,#REF!,E$2,#REF!,E$3,#REF!,Таблица_LOGINS.accdb[[#This Row],[Логин]],#REF!,\"ZB1R\")+SUMIFS(#REF!,#REF!,E$2,#REF!,E$3,#REF!,Таблица_LOGINS.accdb[[#This Row],[Логин SAP]],#REF!,\"ZB1R\")","v":{"$error":"#REF!"}},{"$f":"SUMIFS(#REF!,#REF!,E$2,#REF!,E$3,#REF!,Таблица_LOGINS.accdb[[#This Row],[Логин]],#REF!,\"ZB1R\")+SUMIFS(#REF!,#REF!,E$2,#REF!,E$3,#REF!,Таблица_LOGINS.accdb[[#This Row],[Логин SAP]],#REF!,\"ZB1R\")+SUMIFS(#REF!,#REF!,E$2,#REF!,E$3,#REF!,Таблица_LOGINS.accdb[[#This Row],[Логин]],#REF!,\"ZA1R\")+SUMIFS(#REF!,#REF!,E$2,#REF!,E$3,#REF!,Таблица_LOGINS.accdb[[#This Row],[Логин SAP]],#REF!,\"ZA1R\")","v":{"$error":"#REF!"}},{"$f":"SUMIFS(#REF!,#REF!,E$2,#REF!,E$3,#REF!,Таблица_LOGINS.accdb[[#This Row],[Логин]],#REF!,\"ZG1R\")+SUMIFS(#REF!,#REF!,E$2,#REF!,E$3,#REF!,Таблица_LOGINS.accdb[[#This Row],[Логин SAP]],#REF!,\"ZG1R\")","v":{"$error":"#REF!"}},{"$f":"SUMIFS(#REF!,#REF!,E$2,#REF!,E$3,#REF!,Таблица_LOGINS.accdb[[#This Row],[Логин]],#REF!,\"ZG1R\")+SUMIFS(#REF!,#REF!,E$2,#REF!,E$3,#REF!,Таблица_LOGINS.accdb[[#This Row],[Логин SAP]],#REF!,\"ZG1R\")","v":{"$error":"#REF!"}},{"$f":"SUMIFS(#REF!,#REF!,E$2,#REF!,E$3,#REF!,Таблица_LOGINS.accdb[[#This Row],[Логин]],#REF!,\"ZC3R\")+SUMIFS(#REF!,#REF!,E$2,#REF!,E$3,#REF!,Таблица_LOGINS.accdb[[#This Row],[Логин SAP]],#REF!,\"ZC3R\")","v":{"$error":"#REF!"}},{"$f":"SUMIFS(#REF!,#REF!,E$2,#REF!,E$3,#REF!,Таблица_LOGINS.accdb[[#This Row],[Логин]],#REF!,\"ZC3R\")+SUMIFS(#REF!,#REF!,E$2,#REF!,E$3,#REF!,Таблица_LOGINS.accdb[[#This Row],[Логин SAP]],#REF!,\"ZC3R\")","v":{"$error":"#REF!"}},{"$error":"#REF!"},{"$error":"#REF!"},{"$f":"IFERROR(Таблица_LOGINS.accdb[[#This Row],[Mistakes of picking (conf)]]/Таблица_LOGINS.accdb[[#This Row],[Picked]],0)","v":0},{"$f":"IFERROR(Таблица_LOGINS.accdb[[#This Row],[Mistakes of packing (conf)]]/Таблица_LOGINS.accdb[[#This Row],[Packed]],0)","v":0},{"$f":"SUM(Таблица_LOGINS.accdb[[#This Row],[% mistake picking]:[% mistake packing]])","v":0},{"$error":"#REF!"},0]
[null,1571,"Neovia","TRANSPORT",7,"Якушина Любовь  Николаевна",null,"DVRLYN3","Транспортный Диспетчер","Приемка/Размещение",false,{"$f":"SUMIFS(#REF!,#REF!,E$2,#REF!,E$3,#REF!,Таблица_LOGINS.accdb[[#This Row],[Логин]])+SUMIFS(#REF!,#REF!,E$2,#REF!,E$3,#REF!,Таблица_LOGINS.accdb[[#This Row],[Логин SAP]])","v":{"$error":"#REF!"}},{"$f":"SUMIFS(#REF!,#REF!,E$2,#REF!,E$3,#REF!,Таблица_LOGINS.accdb[[#This Row],[Логин]])+SUMIFS(#REF!,#REF!,E$2,#REF!,E$3,#REF!,Таблица_LOGINS.accdb[[#This Row],[Логин SAP]])","v":{"$error":"#REF!"}},{"$f":"SUM(Таблица_LOGINS.accdb[[#This Row],[Receiving]:[Putaway]])","v":{"$error":"#REF!"}},{"$f":"SUMIFS(#REF!,#REF!,E$2,#REF!,E$3,#REF!,Таблица_LOGINS.accdb[[#This Row],[Логин]])+SUMIFS(#REF!,#REF!,E$2,#REF!,E$3,#REF!,Таблица_LOGINS.accdb[[#This Row],[Логин SAP]])","v":{"$error":"#REF!"}},{"$f":"SUMIFS(#REF!,#REF!,E$2,#REF!,E$3,#REF!,Таблица_LOGINS.accdb[[#This Row],[Логин]])+SUMIFS(#REF!,#REF!,E$2,#REF!,E$3,#REF!,Таблица_LOGINS.accdb[[#This Row],[Логин SAP]])","v":{"$error":"#REF!"}},{"$f":"IFERROR(Таблица_LOGINS.accdb[[#This Row],[Mist Receiving]]/Таблица_LOGINS.accdb[[#This Row],[Receiving]],0)","v":0},{"$f":"IFERROR(Таблица_LOGINS.accdb[[#This Row],[Mist Putaway ]]/Таблица_LOGINS.accdb[[#This Row],[Putaway]],0)","v":0},{"$f":"SUM(Таблица_LOGINS.accdb[[#This Row],[% mistake receiving]:[% mistake putaway]])","v":0},{"$f":"SUMIFS(#REF!,#REF!,E$2,#REF!,E$3,#REF!,Таблица_LOGINS.accdb[[#This Row],[Логин]])+SUMIFS(#REF!,#REF!,E$2,#REF!,E$3,#REF!,Таблица_LOGINS.accdb[[#This Row],[Логин SAP]])","v":{"$error":"#REF!"}},{"$f":"SUMIFS(#REF!,#REF!,E$2,#REF!,E$3,#REF!,Таблица_LOGINS.accdb[[#This Row],[Логин]])+SUMIFS(#REF!,#REF!,E$2,#REF!,E$3,#REF!,Таблица_LOGINS.accdb[[#This Row],[Логин SAP]])","v":{"$error":"#REF!"}},{"$f":"SUM(Таблица_LOGINS.accdb[[#This Row],[Picked]:[Packed]])","v":{"$error":"#REF!"}},{"$f":"SUMIFS(#REF!,#REF!,E$2,#REF!,E$3,#REF!,Таблица_LOGINS.accdb[[#This Row],[Логин]],#REF!,\"ZA1R\")+SUMIFS(#REF!,#REF!,E$2,#REF!,E$3,#REF!,Таблица_LOGINS.accdb[[#This Row],[Логин]],#REF!,\"ZB1R\")+SUMIFS(#REF!,#REF!,E$2,#REF!,E$3,#REF!,Таблица_LOGINS.accdb[[#This Row],[Логин SAP]],#REF!,\"ZA1R\")+SUMIFS(#REF!,#REF!,E$2,#REF!,E$3,#REF!,Таблица_LOGINS.accdb[[#This Row],[Логин SAP]],#REF!,\"ZB1R\")","v":{"$error":"#REF!"}},{"$f":"SUMIFS(#REF!,#REF!,E$2,#REF!,E$3,#REF!,Таблица_LOGINS.accdb[[#This Row],[Логин]],#REF!,\"ZB1R\")+SUMIFS(#REF!,#REF!,E$2,#REF!,E$3,#REF!,Таблица_LOGINS.accdb[[#This Row],[Логин SAP]],#REF!,\"ZB1R\")+SUMIFS(#REF!,#REF!,E$2,#REF!,E$3,#REF!,Таблица_LOGINS.accdb[[#This Row],[Логин]],#REF!,\"ZA1R\")+SUMIFS(#REF!,#REF!,E$2,#REF!,E$3,#REF!,Таблица_LOGINS.accdb[[#This Row],[Логин SAP]],#REF!,\"ZA1R\")","v":{"$error":"#REF!"}},{"$f":"SUMIFS(#REF!,#REF!,E$2,#REF!,E$3,#REF!,Таблица_LOGINS.accdb[[#This Row],[Логин]],#REF!,\"ZG1R\")+SUMIFS(#REF!,#REF!,E$2,#REF!,E$3,#REF!,Таблица_LOGINS.accdb[[#This Row],[Логин SAP]],#REF!,\"ZG1R\")","v":{"$error":"#REF!"}},{"$f":"SUMIFS(#REF!,#REF!,E$2,#REF!,E$3,#REF!,Таблица_LOGINS.accdb[[#This Row],[Логин]],#REF!,\"ZG1R\")+SUMIFS(#REF!,#REF!,E$2,#REF!,E$3,#REF!,Таблица_LOGINS.accdb[[#This Row],[Логин SAP]],#REF!,\"ZG1R\")","v":{"$error":"#REF!"}},{"$f":"SUMIFS(#REF!,#REF!,E$2,#REF!,E$3,#REF!,Таблица_LOGINS.accdb[[#This Row],[Логин]],#REF!,\"ZC3R\")+SUMIFS(#REF!,#REF!,E$2,#REF!,E$3,#REF!,Таблица_LOGINS.accdb[[#This Row],[Логин SAP]],#REF!,\"ZC3R\")","v":{"$error":"#REF!"}},{"$f":"SUMIFS(#REF!,#REF!,E$2,#REF!,E$3,#REF!,Таблица_LOGINS.accdb[[#This Row],[Логин]],#REF!,\"ZC3R\")+SUMIFS(#REF!,#REF!,E$2,#REF!,E$3,#REF!,Таблица_LOGINS.accdb[[#This Row],[Логин SAP]],#REF!,\"ZC3R\")","v":{"$error":"#REF!"}},null,null,null,{"$f":"SUMIFS(#REF!,#REF!,E$2,#REF!,E$3,#REF!,Таблица_LOGINS.accdb[[#This Row],[Логин]],#REF!,\"ZA1R\")+SUMIFS(#REF!,#REF!,E$2,#REF!,E$3,#REF!,Таблица_LOGINS.accdb[[#This Row],[Логин SAP]],#REF!,\"ZA1R\")+SUMIFS(#REF!,#REF!,E$2,#REF!,E$3,#REF!,Таблица_LOGINS.accdb[[#This Row],[Логин]],#REF!,\"ZB1R\")+SUMIFS(#REF!,#REF!,E$2,#REF!,E$3,#REF!,Таблица_LOGINS.accdb[[#This Row],[Логин SAP]],#REF!,\"ZB1R\")","v":{"$error":"#REF!"}},{"$f":"SUMIFS(#REF!,#REF!,E$2,#REF!,E$3,#REF!,Таблица_LOGINS.accdb[[#This Row],[Логин]],#REF!,\"ZB1R\")+SUMIFS(#REF!,#REF!,E$2,#REF!,E$3,#REF!,Таблица_LOGINS.accdb[[#This Row],[Логин SAP]],#REF!,\"ZB1R\")+SUMIFS(#REF!,#REF!,E$2,#REF!,E$3,#REF!,Таблица_LOGINS.accdb[[#This Row],[Логин]],#REF!,\"ZA1R\")+SUMIFS(#REF!,#REF!,E$2,#REF!,E$3,#REF!,Таблица_LOGINS.accdb[[#This Row],[Логин SAP]],#REF!,\"ZA1R\")","v":{"$error":"#REF!"}},{"$f":"SUMIFS(#REF!,#REF!,E$2,#REF!,E$3,#REF!,Таблица_LOGINS.accdb[[#This Row],[Логин]],#REF!,\"ZG1R\")+SUMIFS(#REF!,#REF!,E$2,#REF!,E$3,#REF!,Таблица_LOGINS.accdb[[#This Row],[Логин SAP]],#REF!,\"ZG1R\")","v":{"$error":"#REF!"}},{"$f":"SUMIFS(#REF!,#REF!,E$2,#REF!,E$3,#REF!,Таблица_LOGINS.accdb[[#This Row],[Логин]],#REF!,\"ZG1R\")+SUMIFS(#REF!,#REF!,E$2,#REF!,E$3,#REF!,Таблица_LOGINS.accdb[[#This Row],[Логин SAP]],#REF!,\"ZG1R\")","v":{"$error":"#REF!"}},{"$f":"SUMIFS(#REF!,#REF!,E$2,#REF!,E$3,#REF!,Таблица_LOGINS.accdb[[#This Row],[Логин]],#REF!,\"ZC3R\")+SUMIFS(#REF!,#REF!,E$2,#REF!,E$3,#REF!,Таблица_LOGINS.accdb[[#This Row],[Логин SAP]],#REF!,\"ZC3R\")","v":{"$error":"#REF!"}},{"$f":"SUMIFS(#REF!,#REF!,E$2,#REF!,E$3,#REF!,Таблица_LOGINS.accdb[[#This Row],[Логин]],#REF!,\"ZC3R\")+SUMIFS(#REF!,#REF!,E$2,#REF!,E$3,#REF!,Таблица_LOGINS.accdb[[#This Row],[Логин SAP]],#REF!,\"ZC3R\")","v":{"$error":"#REF!"}},{"$error":"#REF!"},{"$error":"#REF!"},{"$f":"IFERROR(Таблица_LOGINS.accdb[[#This Row],[Mistakes of picking (conf)]]/Таблица_LOGINS.accdb[[#This Row],[Picked]],0)","v":0},{"$f":"IFERROR(Таблица_LOGINS.accdb[[#This Row],[Mistakes of packing (conf)]]/Таблица_LOGINS.accdb[[#This Row],[Packed]],0)","v":0},{"$f":"SUM(Таблица_LOGINS.accdb[[#This Row],[% mistake picking]:[% mistake packing]])","v":0},{"$error":"#REF!"},0]
[null,1582,"Neovia","TRANSPORT",7,"Абрамова Мария",null,"DVRXMAR","Транспортный Диспетчер","Приемка/Размещение",false,{"$f":"SUMIFS(#REF!,#REF!,E$2,#REF!,E$3,#REF!,Таблица_LOGINS.accdb[[#This Row],[Логин]])+SUMIFS(#REF!,#REF!,E$2,#REF!,E$3,#REF!,Таблица_LOGINS.accdb[[#This Row],[Логин SAP]])","v":{"$error":"#REF!"}},{"$f":"SUMIFS(#REF!,#REF!,E$2,#REF!,E$3,#REF!,Таблица_LOGINS.accdb[[#This Row],[Логин]])+SUMIFS(#REF!,#REF!,E$2,#REF!,E$3,#REF!,Таблица_LOGINS.accdb[[#This Row],[Логин SAP]])","v":{"$error":"#REF!"}},{"$f":"SUM(Таблица_LOGINS.accdb[[#This Row],[Receiving]:[Putaway]])","v":{"$error":"#REF!"}},{"$f":"SUMIFS(#REF!,#REF!,E$2,#REF!,E$3,#REF!,Таблица_LOGINS.accdb[[#This Row],[Логин]])+SUMIFS(#REF!,#REF!,E$2,#REF!,E$3,#REF!,Таблица_LOGINS.accdb[[#This Row],[Логин SAP]])","v":{"$error":"#REF!"}},{"$f":"SUMIFS(#REF!,#REF!,E$2,#REF!,E$3,#REF!,Таблица_LOGINS.accdb[[#This Row],[Логин]])+SUMIFS(#REF!,#REF!,E$2,#REF!,E$3,#REF!,Таблица_LOGINS.accdb[[#This Row],[Логин SAP]])","v":{"$error":"#REF!"}},{"$f":"IFERROR(Таблица_LOGINS.accdb[[#This Row],[Mist Receiving]]/Таблица_LOGINS.accdb[[#This Row],[Receiving]],0)","v":0},{"$f":"IFERROR(Таблица_LOGINS.accdb[[#This Row],[Mist Putaway ]]/Таблица_LOGINS.accdb[[#This Row],[Putaway]],0)","v":0},{"$f":"SUM(Таблица_LOGINS.accdb[[#This Row],[% mistake receiving]:[% mistake putaway]])","v":0},{"$f":"SUMIFS(#REF!,#REF!,E$2,#REF!,E$3,#REF!,Таблица_LOGINS.accdb[[#This Row],[Логин]])+SUMIFS(#REF!,#REF!,E$2,#REF!,E$3,#REF!,Таблица_LOGINS.accdb[[#This Row],[Логин SAP]])","v":{"$error":"#REF!"}},{"$f":"SUMIFS(#REF!,#REF!,E$2,#REF!,E$3,#REF!,Таблица_LOGINS.accdb[[#This Row],[Логин]])+SUMIFS(#REF!,#REF!,E$2,#REF!,E$3,#REF!,Таблица_LOGINS.accdb[[#This Row],[Логин SAP]])","v":{"$error":"#REF!"}},{"$f":"SUM(Таблица_LOGINS.accdb[[#This Row],[Picked]:[Packed]])","v":{"$error":"#REF!"}},{"$f":"SUMIFS(#REF!,#REF!,E$2,#REF!,E$3,#REF!,Таблица_LOGINS.accdb[[#This Row],[Логин]],#REF!,\"ZA1R\")+SUMIFS(#REF!,#REF!,E$2,#REF!,E$3,#REF!,Таблица_LOGINS.accdb[[#This Row],[Логин]],#REF!,\"ZB1R\")+SUMIFS(#REF!,#REF!,E$2,#REF!,E$3,#REF!,Таблица_LOGINS.accdb[[#This Row],[Логин SAP]],#REF!,\"ZA1R\")+SUMIFS(#REF!,#REF!,E$2,#REF!,E$3,#REF!,Таблица_LOGINS.accdb[[#This Row],[Логин SAP]],#REF!,\"ZB1R\")","v":{"$error":"#REF!"}},{"$f":"SUMIFS(#REF!,#REF!,E$2,#REF!,E$3,#REF!,Таблица_LOGINS.accdb[[#This Row],[Логин]],#REF!,\"ZB1R\")+SUMIFS(#REF!,#REF!,E$2,#REF!,E$3,#REF!,Таблица_LOGINS.accdb[[#This Row],[Логин SAP]],#REF!,\"ZB1R\")+SUMIFS(#REF!,#REF!,E$2,#REF!,E$3,#REF!,Таблица_LOGINS.accdb[[#This Row],[Логин]],#REF!,\"ZA1R\")+SUMIFS(#REF!,#REF!,E$2,#REF!,E$3,#REF!,Таблица_LOGINS.accdb[[#This Row],[Логин SAP]],#REF!,\"ZA1R\")","v":{"$error":"#REF!"}},{"$f":"SUMIFS(#REF!,#REF!,E$2,#REF!,E$3,#REF!,Таблица_LOGINS.accdb[[#This Row],[Логин]],#REF!,\"ZG1R\")+SUMIFS(#REF!,#REF!,E$2,#REF!,E$3,#REF!,Таблица_LOGINS.accdb[[#This Row],[Логин SAP]],#REF!,\"ZG1R\")","v":{"$error":"#REF!"}},{"$f":"SUMIFS(#REF!,#REF!,E$2,#REF!,E$3,#REF!,Таблица_LOGINS.accdb[[#This Row],[Логин]],#REF!,\"ZG1R\")+SUMIFS(#REF!,#REF!,E$2,#REF!,E$3,#REF!,Таблица_LOGINS.accdb[[#This Row],[Логин SAP]],#REF!,\"ZG1R\")","v":{"$error":"#REF!"}},{"$f":"SUMIFS(#REF!,#REF!,E$2,#REF!,E$3,#REF!,Таблица_LOGINS.accdb[[#This Row],[Логин]],#REF!,\"ZC3R\")+SUMIFS(#REF!,#REF!,E$2,#REF!,E$3,#REF!,Таблица_LOGINS.accdb[[#This Row],[Логин SAP]],#REF!,\"ZC3R\")","v":{"$error":"#REF!"}},{"$f":"SUMIFS(#REF!,#REF!,E$2,#REF!,E$3,#REF!,Таблица_LOGINS.accdb[[#This Row],[Логин]],#REF!,\"ZC3R\")+SUMIFS(#REF!,#REF!,E$2,#REF!,E$3,#REF!,Таблица_LOGINS.accdb[[#This Row],[Логин SAP]],#REF!,\"ZC3R\")","v":{"$error":"#REF!"}},null,null,null,{"$f":"SUMIFS(#REF!,#REF!,E$2,#REF!,E$3,#REF!,Таблица_LOGINS.accdb[[#This Row],[Логин]],#REF!,\"ZA1R\")+SUMIFS(#REF!,#REF!,E$2,#REF!,E$3,#REF!,Таблица_LOGINS.accdb[[#This Row],[Логин SAP]],#REF!,\"ZA1R\")+SUMIFS(#REF!,#REF!,E$2,#REF!,E$3,#REF!,Таблица_LOGINS.accdb[[#This Row],[Логин]],#REF!,\"ZB1R\")+SUMIFS(#REF!,#REF!,E$2,#REF!,E$3,#REF!,Таблица_LOGINS.accdb[[#This Row],[Логин SAP]],#REF!,\"ZB1R\")","v":{"$error":"#REF!"}},{"$f":"SUMIFS(#REF!,#REF!,E$2,#REF!,E$3,#REF!,Таблица_LOGINS.accdb[[#This Row],[Логин]],#REF!,\"ZB1R\")+SUMIFS(#REF!,#REF!,E$2,#REF!,E$3,#REF!,Таблица_LOGINS.accdb[[#This Row],[Логин SAP]],#REF!,\"ZB1R\")+SUMIFS(#REF!,#REF!,E$2,#REF!,E$3,#REF!,Таблица_LOGINS.accdb[[#This Row],[Логин]],#REF!,\"ZA1R\")+SUMIFS(#REF!,#REF!,E$2,#REF!,E$3,#REF!,Таблица_LOGINS.accdb[[#This Row],[Логин SAP]],#REF!,\"ZA1R\")","v":{"$error":"#REF!"}},{"$f":"SUMIFS(#REF!,#REF!,E$2,#REF!,E$3,#REF!,Таблица_LOGINS.accdb[[#This Row],[Логин]],#REF!,\"ZG1R\")+SUMIFS(#REF!,#REF!,E$2,#REF!,E$3,#REF!,Таблица_LOGINS.accdb[[#This Row],[Логин SAP]],#REF!,\"ZG1R\")","v":{"$error":"#REF!"}},{"$f":"SUMIFS(#REF!,#REF!,E$2,#REF!,E$3,#REF!,Таблица_LOGINS.accdb[[#This Row],[Логин]],#REF!,\"ZG1R\")+SUMIFS(#REF!,#REF!,E$2,#REF!,E$3,#REF!,Таблица_LOGINS.accdb[[#This Row],[Логин SAP]],#REF!,\"ZG1R\")","v":{"$error":"#REF!"}},{"$f":"SUMIFS(#REF!,#REF!,E$2,#REF!,E$3,#REF!,Таблица_LOGINS.accdb[[#This Row],[Логин]],#REF!,\"ZC3R\")+SUMIFS(#REF!,#REF!,E$2,#REF!,E$3,#REF!,Таблица_LOGINS.accdb[[#This Row],[Логин SAP]],#REF!,\"ZC3R\")","v":{"$error":"#REF!"}},{"$f":"SUMIFS(#REF!,#REF!,E$2,#REF!,E$3,#REF!,Таблица_LOGINS.accdb[[#This Row],[Логин]],#REF!,\"ZC3R\")+SUMIFS(#REF!,#REF!,E$2,#REF!,E$3,#REF!,Таблица_LOGINS.accdb[[#This Row],[Логин SAP]],#REF!,\"ZC3R\")","v":{"$error":"#REF!"}},{"$error":"#REF!"},{"$error":"#REF!"},{"$f":"IFERROR(Таблица_LOGINS.accdb[[#This Row],[Mistakes of picking (conf)]]/Таблица_LOGINS.accdb[[#This Row],[Picked]],0)","v":0},{"$f":"IFERROR(Таблица_LOGINS.accdb[[#This Row],[Mistakes of packing (conf)]]/Таблица_LOGINS.accdb[[#This Row],[Packed]],0)","v":0},{"$f":"SUM(Таблица_LOGINS.accdb[[#This Row],[% mistake picking]:[% mistake packing]])","v":0},{"$error":"#REF!"},0]
[null,1591,"Neovia","TRANSPORT",7,"Хощенко Маргарита",null,"DVRXHMV","Транспортный Диспетчер","Приемка/Размещение",false,{"$f":"SUMIFS(#REF!,#REF!,E$2,#REF!,E$3,#REF!,Таблица_LOGINS.accdb[[#This Row],[Логин]])+SUMIFS(#REF!,#REF!,E$2,#REF!,E$3,#REF!,Таблица_LOGINS.accdb[[#This Row],[Логин SAP]])","v":{"$error":"#REF!"}},{"$f":"SUMIFS(#REF!,#REF!,E$2,#REF!,E$3,#REF!,Таблица_LOGINS.accdb[[#This Row],[Логин]])+SUMIFS(#REF!,#REF!,E$2,#REF!,E$3,#REF!,Таблица_LOGINS.accdb[[#This Row],[Логин SAP]])","v":{"$error":"#REF!"}},{"$f":"SUM(Таблица_LOGINS.accdb[[#This Row],[Receiving]:[Putaway]])","v":{"$error":"#REF!"}},{"$f":"SUMIFS(#REF!,#REF!,E$2,#REF!,E$3,#REF!,Таблица_LOGINS.accdb[[#This Row],[Логин]])+SUMIFS(#REF!,#REF!,E$2,#REF!,E$3,#REF!,Таблица_LOGINS.accdb[[#This Row],[Логин SAP]])","v":{"$error":"#REF!"}},{"$f":"SUMIFS(#REF!,#REF!,E$2,#REF!,E$3,#REF!,Таблица_LOGINS.accdb[[#This Row],[Логин]])+SUMIFS(#REF!,#REF!,E$2,#REF!,E$3,#REF!,Таблица_LOGINS.accdb[[#This Row],[Логин SAP]])","v":{"$error":"#REF!"}},{"$f":"IFERROR(Таблица_LOGINS.accdb[[#This Row],[Mist Receiving]]/Таблица_LOGINS.accdb[[#This Row],[Receiving]],0)","v":0},{"$f":"IFERROR(Таблица_LOGINS.accdb[[#This Row],[Mist Putaway ]]/Таблица_LOGINS.accdb[[#This Row],[Putaway]],0)","v":0},{"$f":"SUM(Таблица_LOGINS.accdb[[#This Row],[% mistake receiving]:[% mistake putaway]])","v":0},{"$f":"SUMIFS(#REF!,#REF!,E$2,#REF!,E$3,#REF!,Таблица_LOGINS.accdb[[#This Row],[Логин]])+SUMIFS(#REF!,#REF!,E$2,#REF!,E$3,#REF!,Таблица_LOGINS.accdb[[#This Row],[Логин SAP]])","v":{"$error":"#REF!"}},{"$f":"SUMIFS(#REF!,#REF!,E$2,#REF!,E$3,#REF!,Таблица_LOGINS.accdb[[#This Row],[Логин]])+SUMIFS(#REF!,#REF!,E$2,#REF!,E$3,#REF!,Таблица_LOGINS.accdb[[#This Row],[Логин SAP]])","v":{"$error":"#REF!"}},{"$f":"SUM(Таблица_LOGINS.accdb[[#This Row],[Picked]:[Packed]])","v":{"$error":"#REF!"}},{"$f":"SUMIFS(#REF!,#REF!,E$2,#REF!,E$3,#REF!,Таблица_LOGINS.accdb[[#This Row],[Логин]],#REF!,\"ZA1R\")+SUMIFS(#REF!,#REF!,E$2,#REF!,E$3,#REF!,Таблица_LOGINS.accdb[[#This Row],[Логин]],#REF!,\"ZB1R\")+SUMIFS(#REF!,#REF!,E$2,#REF!,E$3,#REF!,Таблица_LOGINS.accdb[[#This Row],[Логин SAP]],#REF!,\"ZA1R\")+SUMIFS(#REF!,#REF!,E$2,#REF!,E$3,#REF!,Таблица_LOGINS.accdb[[#This Row],[Логин SAP]],#REF!,\"ZB1R\")","v":{"$error":"#REF!"}},{"$f":"SUMIFS(#REF!,#REF!,E$2,#REF!,E$3,#REF!,Таблица_LOGINS.accdb[[#This Row],[Логин]],#REF!,\"ZB1R\")+SUMIFS(#REF!,#REF!,E$2,#REF!,E$3,#REF!,Таблица_LOGINS.accdb[[#This Row],[Логин SAP]],#REF!,\"ZB1R\")+SUMIFS(#REF!,#REF!,E$2,#REF!,E$3,#REF!,Таблица_LOGINS.accdb[[#This Row],[Логин]],#REF!,\"ZA1R\")+SUMIFS(#REF!,#REF!,E$2,#REF!,E$3,#REF!,Таблица_LOGINS.accdb[[#This Row],[Логин SAP]],#REF!,\"ZA1R\")","v":{"$error":"#REF!"}},{"$f":"SUMIFS(#REF!,#REF!,E$2,#REF!,E$3,#REF!,Таблица_LOGINS.accdb[[#This Row],[Логин]],#REF!,\"ZG1R\")+SUMIFS(#REF!,#REF!,E$2,#REF!,E$3,#REF!,Таблица_LOGINS.accdb[[#This Row],[Логин SAP]],#REF!,\"ZG1R\")","v":{"$error":"#REF!"}},{"$f":"SUMIFS(#REF!,#REF!,E$2,#REF!,E$3,#REF!,Таблица_LOGINS.accdb[[#This Row],[Логин]],#REF!,\"ZG1R\")+SUMIFS(#REF!,#REF!,E$2,#REF!,E$3,#REF!,Таблица_LOGINS.accdb[[#This Row],[Логин SAP]],#REF!,\"ZG1R\")","v":{"$error":"#REF!"}},{"$f":"SUMIFS(#REF!,#REF!,E$2,#REF!,E$3,#REF!,Таблица_LOGINS.accdb[[#This Row],[Логин]],#REF!,\"ZC3R\")+SUMIFS(#REF!,#REF!,E$2,#REF!,E$3,#REF!,Таблица_LOGINS.accdb[[#This Row],[Логин SAP]],#REF!,\"ZC3R\")","v":{"$error":"#REF!"}},{"$f":"SUMIFS(#REF!,#REF!,E$2,#REF!,E$3,#REF!,Таблица_LOGINS.accdb[[#This Row],[Логин]],#REF!,\"ZC3R\")+SUMIFS(#REF!,#REF!,E$2,#REF!,E$3,#REF!,Таблица_LOGINS.accdb[[#This Row],[Логин SAP]],#REF!,\"ZC3R\")","v":{"$error":"#REF!"}},null,null,null,{"$f":"SUMIFS(#REF!,#REF!,E$2,#REF!,E$3,#REF!,Таблица_LOGINS.accdb[[#This Row],[Логин]],#REF!,\"ZA1R\")+SUMIFS(#REF!,#REF!,E$2,#REF!,E$3,#REF!,Таблица_LOGINS.accdb[[#This Row],[Логин SAP]],#REF!,\"ZA1R\")+SUMIFS(#REF!,#REF!,E$2,#REF!,E$3,#REF!,Таблица_LOGINS.accdb[[#This Row],[Логин]],#REF!,\"ZB1R\")+SUMIFS(#REF!,#REF!,E$2,#REF!,E$3,#REF!,Таблица_LOGINS.accdb[[#This Row],[Логин SAP]],#REF!,\"ZB1R\")","v":{"$error":"#REF!"}},{"$f":"SUMIFS(#REF!,#REF!,E$2,#REF!,E$3,#REF!,Таблица_LOGINS.accdb[[#This Row],[Логин]],#REF!,\"ZB1R\")+SUMIFS(#REF!,#REF!,E$2,#REF!,E$3,#REF!,Таблица_LOGINS.accdb[[#This Row],[Логин SAP]],#REF!,\"ZB1R\")+SUMIFS(#REF!,#REF!,E$2,#REF!,E$3,#REF!,Таблица_LOGINS.accdb[[#This Row],[Логин]],#REF!,\"ZA1R\")+SUMIFS(#REF!,#REF!,E$2,#REF!,E$3,#REF!,Таблица_LOGINS.accdb[[#This Row],[Логин SAP]],#REF!,\"ZA1R\")","v":{"$error":"#REF!"}},{"$f":"SUMIFS(#REF!,#REF!,E$2,#REF!,E$3,#REF!,Таблица_LOGINS.accdb[[#This Row],[Логин]],#REF!,\"ZG1R\")+SUMIFS(#REF!,#REF!,E$2,#REF!,E$3,#REF!,Таблица_LOGINS.accdb[[#This Row],[Логин SAP]],#REF!,\"ZG1R\")","v":{"$error":"#REF!"}},{"$f":"SUMIFS(#REF!,#REF!,E$2,#REF!,E$3,#REF!,Таблица_LOGINS.accdb[[#This Row],[Логин]],#REF!,\"ZG1R\")+SUMIFS(#REF!,#REF!,E$2,#REF!,E$3,#REF!,Таблица_LOGINS.accdb[[#This Row],[Логин SAP]],#REF!,\"ZG1R\")","v":{"$error":"#REF!"}},{"$f":"SUMIFS(#REF!,#REF!,E$2,#REF!,E$3,#REF!,Таблица_LOGINS.accdb[[#This Row],[Логин]],#REF!,\"ZC3R\")+SUMIFS(#REF!,#REF!,E$2,#REF!,E$3,#REF!,Таблица_LOGINS.accdb[[#This Row],[Логин SAP]],#REF!,\"ZC3R\")","v":{"$error":"#REF!"}},{"$f":"SUMIFS(#REF!,#REF!,E$2,#REF!,E$3,#REF!,Таблица_LOGINS.accdb[[#This Row],[Логин]],#REF!,\"ZC3R\")+SUMIFS(#REF!,#REF!,E$2,#REF!,E$3,#REF!,Таблица_LOGINS.accdb[[#This Row],[Логин SAP]],#REF!,\"ZC3R\")","v":{"$error":"#REF!"}},{"$error":"#REF!"},{"$error":"#REF!"},{"$f":"IFERROR(Таблица_LOGINS.accdb[[#This Row],[Mistakes of picking (conf)]]/Таблица_LOGINS.accdb[[#This Row],[Picked]],0)","v":0},{"$f":"IFERROR(Таблица_LOGINS.accdb[[#This Row],[Mistakes of packing (conf)]]/Таблица_LOGINS.accdb[[#This Row],[Packed]],0)","v":0},{"$f":"SUM(Таблица_LOGINS.accdb[[#This Row],[% mistake picking]:[% mistake packing]])","v":0},{"$error":"#REF!"},0]
[null,1614,"Neovia","TRANSPORT",7,"Шемякина Дарья Александровна",null,"DVRXSDA","Транспортный Диспетчер","Приемка/Размещение",false,{"$f":"SUMIFS(#REF!,#REF!,E$2,#REF!,E$3,#REF!,Таблица_LOGINS.accdb[[#This Row],[Логин]])+SUMIFS(#REF!,#REF!,E$2,#REF!,E$3,#REF!,Таблица_LOGINS.accdb[[#This Row],[Логин SAP]])","v":{"$error":"#REF!"}},{"$f":"SUMIFS(#REF!,#REF!,E$2,#REF!,E$3,#REF!,Таблица_LOGINS.accdb[[#This Row],[Логин]])+SUMIFS(#REF!,#REF!,E$2,#REF!,E$3,#REF!,Таблица_LOGINS.accdb[[#This Row],[Логин SAP]])","v":{"$error":"#REF!"}},{"$f":"SUM(Таблица_LOGINS.accdb[[#This Row],[Receiving]:[Putaway]])","v":{"$error":"#REF!"}},{"$f":"SUMIFS(#REF!,#REF!,E$2,#REF!,E$3,#REF!,Таблица_LOGINS.accdb[[#This Row],[Логин]])+SUMIFS(#REF!,#REF!,E$2,#REF!,E$3,#REF!,Таблица_LOGINS.accdb[[#This Row],[Логин SAP]])","v":{"$error":"#REF!"}},{"$f":"SUMIFS(#REF!,#REF!,E$2,#REF!,E$3,#REF!,Таблица_LOGINS.accdb[[#This Row],[Логин]])+SUMIFS(#REF!,#REF!,E$2,#REF!,E$3,#REF!,Таблица_LOGINS.accdb[[#This Row],[Логин SAP]])","v":{"$error":"#REF!"}},{"$f":"IFERROR(Таблица_LOGINS.accdb[[#This Row],[Mist Receiving]]/Таблица_LOGINS.accdb[[#This Row],[Receiving]],0)","v":0},{"$f":"IFERROR(Таблица_LOGINS.accdb[[#This Row],[Mist Putaway ]]/Таблица_LOGINS.accdb[[#This Row],[Putaway]],0)","v":0},{"$f":"SUM(Таблица_LOGINS.accdb[[#This Row],[% mistake receiving]:[% mistake putaway]])","v":0},{"$f":"SUMIFS(#REF!,#REF!,E$2,#REF!,E$3,#REF!,Таблица_LOGINS.accdb[[#This Row],[Логин]])+SUMIFS(#REF!,#REF!,E$2,#REF!,E$3,#REF!,Таблица_LOGINS.accdb[[#This Row],[Логин SAP]])","v":{"$error":"#REF!"}},{"$f":"SUMIFS(#REF!,#REF!,E$2,#REF!,E$3,#REF!,Таблица_LOGINS.accdb[[#This Row],[Логин]])+SUMIFS(#REF!,#REF!,E$2,#REF!,E$3,#REF!,Таблица_LOGINS.accdb[[#This Row],[Логин SAP]])","v":{"$error":"#REF!"}},{"$f":"SUM(Таблица_LOGINS.accdb[[#This Row],[Picked]:[Packed]])","v":{"$error":"#REF!"}},{"$f":"SUMIFS(#REF!,#REF!,E$2,#REF!,E$3,#REF!,Таблица_LOGINS.accdb[[#This Row],[Логин]],#REF!,\"ZA1R\")+SUMIFS(#REF!,#REF!,E$2,#REF!,E$3,#REF!,Таблица_LOGINS.accdb[[#This Row],[Логин]],#REF!,\"ZB1R\")+SUMIFS(#REF!,#REF!,E$2,#REF!,E$3,#REF!,Таблица_LOGINS.accdb[[#This Row],[Логин SAP]],#REF!,\"ZA1R\")+SUMIFS(#REF!,#REF!,E$2,#REF!,E$3,#REF!,Таблица_LOGINS.accdb[[#This Row],[Логин SAP]],#REF!,\"ZB1R\")","v":{"$error":"#REF!"}},{"$f":"SUMIFS(#REF!,#REF!,E$2,#REF!,E$3,#REF!,Таблица_LOGINS.accdb[[#This Row],[Логин]],#REF!,\"ZB1R\")+SUMIFS(#REF!,#REF!,E$2,#REF!,E$3,#REF!,Таблица_LOGINS.accdb[[#This Row],[Логин SAP]],#REF!,\"ZB1R\")+SUMIFS(#REF!,#REF!,E$2,#REF!,E$3,#REF!,Таблица_LOGINS.accdb[[#This Row],[Логин]],#REF!,\"ZA1R\")+SUMIFS(#REF!,#REF!,E$2,#REF!,E$3,#REF!,Таблица_LOGINS.accdb[[#This Row],[Логин SAP]],#REF!,\"ZA1R\")","v":{"$error":"#REF!"}},{"$f":"SUMIFS(#REF!,#REF!,E$2,#REF!,E$3,#REF!,Таблица_LOGINS.accdb[[#This Row],[Логин]],#REF!,\"ZG1R\")+SUMIFS(#REF!,#REF!,E$2,#REF!,E$3,#REF!,Таблица_LOGINS.accdb[[#This Row],[Логин SAP]],#REF!,\"ZG1R\")","v":{"$error":"#REF!"}},{"$f":"SUMIFS(#REF!,#REF!,E$2,#REF!,E$3,#REF!,Таблица_LOGINS.accdb[[#This Row],[Логин]],#REF!,\"ZG1R\")+SUMIFS(#REF!,#REF!,E$2,#REF!,E$3,#REF!,Таблица_LOGINS.accdb[[#This Row],[Логин SAP]],#REF!,\"ZG1R\")","v":{"$error":"#REF!"}},{"$f":"SUMIFS(#REF!,#REF!,E$2,#REF!,E$3,#REF!,Таблица_LOGINS.accdb[[#This Row],[Логин]],#REF!,\"ZC3R\")+SUMIFS(#REF!,#REF!,E$2,#REF!,E$3,#REF!,Таблица_LOGINS.accdb[[#This Row],[Логин SAP]],#REF!,\"ZC3R\")","v":{"$error":"#REF!"}},{"$f":"SUMIFS(#REF!,#REF!,E$2,#REF!,E$3,#REF!,Таблица_LOGINS.accdb[[#This Row],[Логин]],#REF!,\"ZC3R\")+SUMIFS(#REF!,#REF!,E$2,#REF!,E$3,#REF!,Таблица_LOGINS.accdb[[#This Row],[Логин SAP]],#REF!,\"ZC3R\")","v":{"$error":"#REF!"}},null,null,null,{"$f":"SUMIFS(#REF!,#REF!,E$2,#REF!,E$3,#REF!,Таблица_LOGINS.accdb[[#This Row],[Логин]],#REF!,\"ZA1R\")+SUMIFS(#REF!,#REF!,E$2,#REF!,E$3,#REF!,Таблица_LOGINS.accdb[[#This Row],[Логин SAP]],#REF!,\"ZA1R\")+SUMIFS(#REF!,#REF!,E$2,#REF!,E$3,#REF!,Таблица_LOGINS.accdb[[#This Row],[Логин]],#REF!,\"ZB1R\")+SUMIFS(#REF!,#REF!,E$2,#REF!,E$3,#REF!,Таблица_LOGINS.accdb[[#This Row],[Логин SAP]],#REF!,\"ZB1R\")","v":{"$error":"#REF!"}},{"$f":"SUMIFS(#REF!,#REF!,E$2,#REF!,E$3,#REF!,Таблица_LOGINS.accdb[[#This Row],[Логин]],#REF!,\"ZB1R\")+SUMIFS(#REF!,#REF!,E$2,#REF!,E$3,#REF!,Таблица_LOGINS.accdb[[#This Row],[Логин SAP]],#REF!,\"ZB1R\")+SUMIFS(#REF!,#REF!,E$2,#REF!,E$3,#REF!,Таблица_LOGINS.accdb[[#This Row],[Логин]],#REF!,\"ZA1R\")+SUMIFS(#REF!,#REF!,E$2,#REF!,E$3,#REF!,Таблица_LOGINS.accdb[[#This Row],[Логин SAP]],#REF!,\"ZA1R\")","v":{"$error":"#REF!"}},{"$f":"SUMIFS(#REF!,#REF!,E$2,#REF!,E$3,#REF!,Таблица_LOGINS.accdb[[#This Row],[Логин]],#REF!,\"ZG1R\")+SUMIFS(#REF!,#REF!,E$2,#REF!,E$3,#REF!,Таблица_LOGINS.accdb[[#This Row],[Логин SAP]],#REF!,\"ZG1R\")","v":{"$error":"#REF!"}},{"$f":"SUMIFS(#REF!,#REF!,E$2,#REF!,E$3,#REF!,Таблица_LOGINS.accdb[[#This Row],[Логин]],#REF!,\"ZG1R\")+SUMIFS(#REF!,#REF!,E$2,#REF!,E$3,#REF!,Таблица_LOGINS.accdb[[#This Row],[Логин SAP]],#REF!,\"ZG1R\")","v":{"$error":"#REF!"}},{"$f":"SUMIFS(#REF!,#REF!,E$2,#REF!,E$3,#REF!,Таблица_LOGINS.accdb[[#This Row],[Логин]],#REF!,\"ZC3R\")+SUMIFS(#REF!,#REF!,E$2,#REF!,E$3,#REF!,Таблица_LOGINS.accdb[[#This Row],[Логин SAP]],#REF!,\"ZC3R\")","v":{"$error":"#REF!"}},{"$f":"SUMIFS(#REF!,#REF!,E$2,#REF!,E$3,#REF!,Таблица_LOGINS.accdb[[#This Row],[Логин]],#REF!,\"ZC3R\")+SUMIFS(#REF!,#REF!,E$2,#REF!,E$3,#REF!,Таблица_LOGINS.accdb[[#This Row],[Логин SAP]],#REF!,\"ZC3R\")","v":{"$error":"#REF!"}},{"$error":"#REF!"},{"$error":"#REF!"},{"$f":"IFERROR(Таблица_LOGINS.accdb[[#This Row],[Mistakes of picking (conf)]]/Таблица_LOGINS.accdb[[#This Row],[Picked]],0)","v":0},{"$f":"IFERROR(Таблица_LOGINS.accdb[[#This Row],[Mistakes of packing (conf)]]/Таблица_LOGINS.accdb[[#This Row],[Packed]],0)","v":0},{"$f":"SUM(Таблица_LOGINS.accdb[[#This Row],[% mistake picking]:[% mistake packing]])","v":0},{"$error":"#REF!"},0]
[null,1626,"Neovia","TRANSPORT",7,"Абросимова Aлександра Николаевна",null,"DVRXALN","Транспортный Диспетчер","Приемка/Размещение",false,{"$f":"SUMIFS(#REF!,#REF!,E$2,#REF!,E$3,#REF!,Таблица_LOGINS.accdb[[#This Row],[Логин]])+SUMIFS(#REF!,#REF!,E$2,#REF!,E$3,#REF!,Таблица_LOGINS.accdb[[#This Row],[Логин SAP]])","v":{"$error":"#REF!"}},{"$f":"SUMIFS(#REF!,#REF!,E$2,#REF!,E$3,#REF!,Таблица_LOGINS.accdb[[#This Row],[Логин]])+SUMIFS(#REF!,#REF!,E$2,#REF!,E$3,#REF!,Таблица_LOGINS.accdb[[#This Row],[Логин SAP]])","v":{"$error":"#REF!"}},{"$f":"SUM(Таблица_LOGINS.accdb[[#This Row],[Receiving]:[Putaway]])","v":{"$error":"#REF!"}},{"$f":"SUMIFS(#REF!,#REF!,E$2,#REF!,E$3,#REF!,Таблица_LOGINS.accdb[[#This Row],[Логин]])+SUMIFS(#REF!,#REF!,E$2,#REF!,E$3,#REF!,Таблица_LOGINS.accdb[[#This Row],[Логин SAP]])","v":{"$error":"#REF!"}},{"$f":"SUMIFS(#REF!,#REF!,E$2,#REF!,E$3,#REF!,Таблица_LOGINS.accdb[[#This Row],[Логин]])+SUMIFS(#REF!,#REF!,E$2,#REF!,E$3,#REF!,Таблица_LOGINS.accdb[[#This Row],[Логин SAP]])","v":{"$error":"#REF!"}},{"$f":"IFERROR(Таблица_LOGINS.accdb[[#This Row],[Mist Receiving]]/Таблица_LOGINS.accdb[[#This Row],[Receiving]],0)","v":0},{"$f":"IFERROR(Таблица_LOGINS.accdb[[#This Row],[Mist Putaway ]]/Таблица_LOGINS.accdb[[#This Row],[Putaway]],0)","v":0},{"$f":"SUM(Таблица_LOGINS.accdb[[#This Row],[% mistake receiving]:[% mistake putaway]])","v":0},{"$f":"SUMIFS(#REF!,#REF!,E$2,#REF!,E$3,#REF!,Таблица_LOGINS.accdb[[#This Row],[Логин]])+SUMIFS(#REF!,#REF!,E$2,#REF!,E$3,#REF!,Таблица_LOGINS.accdb[[#This Row],[Логин SAP]])","v":{"$error":"#REF!"}},{"$f":"SUMIFS(#REF!,#REF!,E$2,#REF!,E$3,#REF!,Таблица_LOGINS.accdb[[#This Row],[Логин]])+SUMIFS(#REF!,#REF!,E$2,#REF!,E$3,#REF!,Таблица_LOGINS.accdb[[#This Row],[Логин SAP]])","v":{"$error":"#REF!"}},{"$f":"SUM(Таблица_LOGINS.accdb[[#This Row],[Picked]:[Packed]])","v":{"$error":"#REF!"}},{"$f":"SUMIFS(#REF!,#REF!,E$2,#REF!,E$3,#REF!,Таблица_LOGINS.accdb[[#This Row],[Логин]],#REF!,\"ZA1R\")+SUMIFS(#REF!,#REF!,E$2,#REF!,E$3,#REF!,Таблица_LOGINS.accdb[[#This Row],[Логин]],#REF!,\"ZB1R\")+SUMIFS(#REF!,#REF!,E$2,#REF!,E$3,#REF!,Таблица_LOGINS.accdb[[#This Row],[Логин SAP]],#REF!,\"ZA1R\")+SUMIFS(#REF!,#REF!,E$2,#REF!,E$3,#REF!,Таблица_LOGINS.accdb[[#This Row],[Логин SAP]],#REF!,\"ZB1R\")","v":{"$error":"#REF!"}},{"$f":"SUMIFS(#REF!,#REF!,E$2,#REF!,E$3,#REF!,Таблица_LOGINS.accdb[[#This Row],[Логин]],#REF!,\"ZB1R\")+SUMIFS(#REF!,#REF!,E$2,#REF!,E$3,#REF!,Таблица_LOGINS.accdb[[#This Row],[Логин SAP]],#REF!,\"ZB1R\")+SUMIFS(#REF!,#REF!,E$2,#REF!,E$3,#REF!,Таблица_LOGINS.accdb[[#This Row],[Логин]],#REF!,\"ZA1R\")+SUMIFS(#REF!,#REF!,E$2,#REF!,E$3,#REF!,Таблица_LOGINS.accdb[[#This Row],[Логин SAP]],#REF!,\"ZA1R\")","v":{"$error":"#REF!"}},{"$f":"SUMIFS(#REF!,#REF!,E$2,#REF!,E$3,#REF!,Таблица_LOGINS.accdb[[#This Row],[Логин]],#REF!,\"ZG1R\")+SUMIFS(#REF!,#REF!,E$2,#REF!,E$3,#REF!,Таблица_LOGINS.accdb[[#This Row],[Логин SAP]],#REF!,\"ZG1R\")","v":{"$error":"#REF!"}},{"$f":"SUMIFS(#REF!,#REF!,E$2,#REF!,E$3,#REF!,Таблица_LOGINS.accdb[[#This Row],[Логин]],#REF!,\"ZG1R\")+SUMIFS(#REF!,#REF!,E$2,#REF!,E$3,#REF!,Таблица_LOGINS.accdb[[#This Row],[Логин SAP]],#REF!,\"ZG1R\")","v":{"$error":"#REF!"}},{"$f":"SUMIFS(#REF!,#REF!,E$2,#REF!,E$3,#REF!,Таблица_LOGINS.accdb[[#This Row],[Логин]],#REF!,\"ZC3R\")+SUMIFS(#REF!,#REF!,E$2,#REF!,E$3,#REF!,Таблица_LOGINS.accdb[[#This Row],[Логин SAP]],#REF!,\"ZC3R\")","v":{"$error":"#REF!"}},{"$f":"SUMIFS(#REF!,#REF!,E$2,#REF!,E$3,#REF!,Таблица_LOGINS.accdb[[#This Row],[Логин]],#REF!,\"ZC3R\")+SUMIFS(#REF!,#REF!,E$2,#REF!,E$3,#REF!,Таблица_LOGINS.accdb[[#This Row],[Логин SAP]],#REF!,\"ZC3R\")","v":{"$error":"#REF!"}},null,null,null,{"$f":"SUMIFS(#REF!,#REF!,E$2,#REF!,E$3,#REF!,Таблица_LOGINS.accdb[[#This Row],[Логин]],#REF!,\"ZA1R\")+SUMIFS(#REF!,#REF!,E$2,#REF!,E$3,#REF!,Таблица_LOGINS.accdb[[#This Row],[Логин SAP]],#REF!,\"ZA1R\")+SUMIFS(#REF!,#REF!,E$2,#REF!,E$3,#REF!,Таблица_LOGINS.accdb[[#This Row],[Логин]],#REF!,\"ZB1R\")+SUMIFS(#REF!,#REF!,E$2,#REF!,E$3,#REF!,Таблица_LOGINS.accdb[[#This Row],[Логин SAP]],#REF!,\"ZB1R\")","v":{"$error":"#REF!"}},{"$f":"SUMIFS(#REF!,#REF!,E$2,#REF!,E$3,#REF!,Таблица_LOGINS.accdb[[#This Row],[Логин]],#REF!,\"ZB1R\")+SUMIFS(#REF!,#REF!,E$2,#REF!,E$3,#REF!,Таблица_LOGINS.accdb[[#This Row],[Логин SAP]],#REF!,\"ZB1R\")+SUMIFS(#REF!,#REF!,E$2,#REF!,E$3,#REF!,Таблица_LOGINS.accdb[[#This Row],[Логин]],#REF!,\"ZA1R\")+SUMIFS(#REF!,#REF!,E$2,#REF!,E$3,#REF!,Таблица_LOGINS.accdb[[#This Row],[Логин SAP]],#REF!,\"ZA1R\")","v":{"$error":"#REF!"}},{"$f":"SUMIFS(#REF!,#REF!,E$2,#REF!,E$3,#REF!,Таблица_LOGINS.accdb[[#This Row],[Логин]],#REF!,\"ZG1R\")+SUMIFS(#REF!,#REF!,E$2,#REF!,E$3,#REF!,Таблица_LOGINS.accdb[[#This Row],[Логин SAP]],#REF!,\"ZG1R\")","v":{"$error":"#REF!"}},{"$f":"SUMIFS(#REF!,#REF!,E$2,#REF!,E$3,#REF!,Таблица_LOGINS.accdb[[#This Row],[Логин]],#REF!,\"ZG1R\")+SUMIFS(#REF!,#REF!,E$2,#REF!,E$3,#REF!,Таблица_LOGINS.accdb[[#This Row],[Логин SAP]],#REF!,\"ZG1R\")","v":{"$error":"#REF!"}},{"$f":"SUMIFS(#REF!,#REF!,E$2,#REF!,E$3,#REF!,Таблица_LOGINS.accdb[[#This Row],[Логин]],#REF!,\"ZC3R\")+SUMIFS(#REF!,#REF!,E$2,#REF!,E$3,#REF!,Таблица_LOGINS.accdb[[#This Row],[Логин SAP]],#REF!,\"ZC3R\")","v":{"$error":"#REF!"}},{"$f":"SUMIFS(#REF!,#REF!,E$2,#REF!,E$3,#REF!,Таблица_LOGINS.accdb[[#This Row],[Логин]],#REF!,\"ZC3R\")+SUMIFS(#REF!,#REF!,E$2,#REF!,E$3,#REF!,Таблица_LOGINS.accdb[[#This Row],[Логин SAP]],#REF!,\"ZC3R\")","v":{"$error":"#REF!"}},{"$error":"#REF!"},{"$error":"#REF!"},{"$f":"IFERROR(Таблица_LOGINS.accdb[[#This Row],[Mistakes of picking (conf)]]/Таблица_LOGINS.accdb[[#This Row],[Picked]],0)","v":0},{"$f":"IFERROR(Таблица_LOGINS.accdb[[#This Row],[Mistakes of packing (conf)]]/Таблица_LOGINS.accdb[[#This Row],[Packed]],0)","v":0},{"$f":"SUM(Таблица_LOGINS.accdb[[#This Row],[% mistake picking]:[% mistake packing]])","v":0},{"$error":"#REF!"},0]
[null,1628,"Neovia","TRANSPORT",7,"Гардт Маргарита Сергеевна",null,"DVRXGMS","Транспортный Диспетчер","Приемка/Размещение",false,{"$f":"SUMIFS(#REF!,#REF!,E$2,#REF!,E$3,#REF!,Таблица_LOGINS.accdb[[#This Row],[Логин]])+SUMIFS(#REF!,#REF!,E$2,#REF!,E$3,#REF!,Таблица_LOGINS.accdb[[#This Row],[Логин SAP]])","v":{"$error":"#REF!"}},{"$f":"SUMIFS(#REF!,#REF!,E$2,#REF!,E$3,#REF!,Таблица_LOGINS.accdb[[#This Row],[Логин]])+SUMIFS(#REF!,#REF!,E$2,#REF!,E$3,#REF!,Таблица_LOGINS.accdb[[#This Row],[Логин SAP]])","v":{"$error":"#REF!"}},{"$f":"SUM(Таблица_LOGINS.accdb[[#This Row],[Receiving]:[Putaway]])","v":{"$error":"#REF!"}},{"$f":"SUMIFS(#REF!,#REF!,E$2,#REF!,E$3,#REF!,Таблица_LOGINS.accdb[[#This Row],[Логин]])+SUMIFS(#REF!,#REF!,E$2,#REF!,E$3,#REF!,Таблица_LOGINS.accdb[[#This Row],[Логин SAP]])","v":{"$error":"#REF!"}},{"$f":"SUMIFS(#REF!,#REF!,E$2,#REF!,E$3,#REF!,Таблица_LOGINS.accdb[[#This Row],[Логин]])+SUMIFS(#REF!,#REF!,E$2,#REF!,E$3,#REF!,Таблица_LOGINS.accdb[[#This Row],[Логин SAP]])","v":{"$error":"#REF!"}},{"$f":"IFERROR(Таблица_LOGINS.accdb[[#This Row],[Mist Receiving]]/Таблица_LOGINS.accdb[[#This Row],[Receiving]],0)","v":0},{"$f":"IFERROR(Таблица_LOGINS.accdb[[#This Row],[Mist Putaway ]]/Таблица_LOGINS.accdb[[#This Row],[Putaway]],0)","v":0},{"$f":"SUM(Таблица_LOGINS.accdb[[#This Row],[% mistake receiving]:[% mistake putaway]])","v":0},{"$f":"SUMIFS(#REF!,#REF!,E$2,#REF!,E$3,#REF!,Таблица_LOGINS.accdb[[#This Row],[Логин]])+SUMIFS(#REF!,#REF!,E$2,#REF!,E$3,#REF!,Таблица_LOGINS.accdb[[#This Row],[Логин SAP]])","v":{"$error":"#REF!"}},{"$f":"SUMIFS(#REF!,#REF!,E$2,#REF!,E$3,#REF!,Таблица_LOGINS.accdb[[#This Row],[Логин]])+SUMIFS(#REF!,#REF!,E$2,#REF!,E$3,#REF!,Таблица_LOGINS.accdb[[#This Row],[Логин SAP]])","v":{"$error":"#REF!"}},{"$f":"SUM(Таблица_LOGINS.accdb[[#This Row],[Picked]:[Packed]])","v":{"$error":"#REF!"}},{"$f":"SUMIFS(#REF!,#REF!,E$2,#REF!,E$3,#REF!,Таблица_LOGINS.accdb[[#This Row],[Логин]],#REF!,\"ZA1R\")+SUMIFS(#REF!,#REF!,E$2,#REF!,E$3,#REF!,Таблица_LOGINS.accdb[[#This Row],[Логин]],#REF!,\"ZB1R\")+SUMIFS(#REF!,#REF!,E$2,#REF!,E$3,#REF!,Таблица_LOGINS.accdb[[#This Row],[Логин SAP]],#REF!,\"ZA1R\")+SUMIFS(#REF!,#REF!,E$2,#REF!,E$3,#REF!,Таблица_LOGINS.accdb[[#This Row],[Логин SAP]],#REF!,\"ZB1R\")","v":{"$error":"#REF!"}},{"$f":"SUMIFS(#REF!,#REF!,E$2,#REF!,E$3,#REF!,Таблица_LOGINS.accdb[[#This Row],[Логин]],#REF!,\"ZB1R\")+SUMIFS(#REF!,#REF!,E$2,#REF!,E$3,#REF!,Таблица_LOGINS.accdb[[#This Row],[Логин SAP]],#REF!,\"ZB1R\")+SUMIFS(#REF!,#REF!,E$2,#REF!,E$3,#REF!,Таблица_LOGINS.accdb[[#This Row],[Логин]],#REF!,\"ZA1R\")+SUMIFS(#REF!,#REF!,E$2,#REF!,E$3,#REF!,Таблица_LOGINS.accdb[[#This Row],[Логин SAP]],#REF!,\"ZA1R\")","v":{"$error":"#REF!"}},{"$f":"SUMIFS(#REF!,#REF!,E$2,#REF!,E$3,#REF!,Таблица_LOGINS.accdb[[#This Row],[Логин]],#REF!,\"ZG1R\")+SUMIFS(#REF!,#REF!,E$2,#REF!,E$3,#REF!,Таблица_LOGINS.accdb[[#This Row],[Логин SAP]],#REF!,\"ZG1R\")","v":{"$error":"#REF!"}},{"$f":"SUMIFS(#REF!,#REF!,E$2,#REF!,E$3,#REF!,Таблица_LOGINS.accdb[[#This Row],[Логин]],#REF!,\"ZG1R\")+SUMIFS(#REF!,#REF!,E$2,#REF!,E$3,#REF!,Таблица_LOGINS.accdb[[#This Row],[Логин SAP]],#REF!,\"ZG1R\")","v":{"$error":"#REF!"}},{"$f":"SUMIFS(#REF!,#REF!,E$2,#REF!,E$3,#REF!,Таблица_LOGINS.accdb[[#This Row],[Логин]],#REF!,\"ZC3R\")+SUMIFS(#REF!,#REF!,E$2,#REF!,E$3,#REF!,Таблица_LOGINS.accdb[[#This Row],[Логин SAP]],#REF!,\"ZC3R\")","v":{"$error":"#REF!"}},{"$f":"SUMIFS(#REF!,#REF!,E$2,#REF!,E$3,#REF!,Таблица_LOGINS.accdb[[#This Row],[Логин]],#REF!,\"ZC3R\")+SUMIFS(#REF!,#REF!,E$2,#REF!,E$3,#REF!,Таблица_LOGINS.accdb[[#This Row],[Логин SAP]],#REF!,\"ZC3R\")","v":{"$error":"#REF!"}},null,null,null,{"$f":"SUMIFS(#REF!,#REF!,E$2,#REF!,E$3,#REF!,Таблица_LOGINS.accdb[[#This Row],[Логин]],#REF!,\"ZA1R\")+SUMIFS(#REF!,#REF!,E$2,#REF!,E$3,#REF!,Таблица_LOGINS.accdb[[#This Row],[Логин SAP]],#REF!,\"ZA1R\")+SUMIFS(#REF!,#REF!,E$2,#REF!,E$3,#REF!,Таблица_LOGINS.accdb[[#This Row],[Логин]],#REF!,\"ZB1R\")+SUMIFS(#REF!,#REF!,E$2,#REF!,E$3,#REF!,Таблица_LOGINS.accdb[[#This Row],[Логин SAP]],#REF!,\"ZB1R\")","v":{"$error":"#REF!"}},{"$f":"SUMIFS(#REF!,#REF!,E$2,#REF!,E$3,#REF!,Таблица_LOGINS.accdb[[#This Row],[Логин]],#REF!,\"ZB1R\")+SUMIFS(#REF!,#REF!,E$2,#REF!,E$3,#REF!,Таблица_LOGINS.accdb[[#This Row],[Логин SAP]],#REF!,\"ZB1R\")+SUMIFS(#REF!,#REF!,E$2,#REF!,E$3,#REF!,Таблица_LOGINS.accdb[[#This Row],[Логин]],#REF!,\"ZA1R\")+SUMIFS(#REF!,#REF!,E$2,#REF!,E$3,#REF!,Таблица_LOGINS.accdb[[#This Row],[Логин SAP]],#REF!,\"ZA1R\")","v":{"$error":"#REF!"}},{"$f":"SUMIFS(#REF!,#REF!,E$2,#REF!,E$3,#REF!,Таблица_LOGINS.accdb[[#This Row],[Логин]],#REF!,\"ZG1R\")+SUMIFS(#REF!,#REF!,E$2,#REF!,E$3,#REF!,Таблица_LOGINS.accdb[[#This Row],[Логин SAP]],#REF!,\"ZG1R\")","v":{"$error":"#REF!"}},{"$f":"SUMIFS(#REF!,#REF!,E$2,#REF!,E$3,#REF!,Таблица_LOGINS.accdb[[#This Row],[Логин]],#REF!,\"ZG1R\")+SUMIFS(#REF!,#REF!,E$2,#REF!,E$3,#REF!,Таблица_LOGINS.accdb[[#This Row],[Логин SAP]],#REF!,\"ZG1R\")","v":{"$error":"#REF!"}},{"$f":"SUMIFS(#REF!,#REF!,E$2,#REF!,E$3,#REF!,Таблица_LOGINS.accdb[[#This Row],[Логин]],#REF!,\"ZC3R\")+SUMIFS(#REF!,#REF!,E$2,#REF!,E$3,#REF!,Таблица_LOGINS.accdb[[#This Row],[Логин SAP]],#REF!,\"ZC3R\")","v":{"$error":"#REF!"}},{"$f":"SUMIFS(#REF!,#REF!,E$2,#REF!,E$3,#REF!,Таблица_LOGINS.accdb[[#This Row],[Логин]],#REF!,\"ZC3R\")+SUMIFS(#REF!,#REF!,E$2,#REF!,E$3,#REF!,Таблица_LOGINS.accdb[[#This Row],[Логин SAP]],#REF!,\"ZC3R\")","v":{"$error":"#REF!"}},{"$error":"#REF!"},{"$error":"#REF!"},{"$f":"IFERROR(Таблица_LOGINS.accdb[[#This Row],[Mistakes of picking (conf)]]/Таблица_LOGINS.accdb[[#This Row],[Picked]],0)","v":0},{"$f":"IFERROR(Таблица_LOGINS.accdb[[#This Row],[Mistakes of packing (conf)]]/Таблица_LOGINS.accdb[[#This Row],[Packed]],0)","v":0},{"$f":"SUM(Таблица_LOGINS.accdb[[#This Row],[% mistake picking]:[% mistake packing]])","v":0},{"$error":"#REF!"},0]
[null,1799,"Neovia","TRANSPORT",7,"Заварян Наталья","ZAVARIANN",null,"Транспортный Диспетчер","Приемка/Размещение",false,{"$f":"SUMIFS(#REF!,#REF!,E$2,#REF!,E$3,#REF!,Таблица_LOGINS.accdb[[#This Row],[Логин]])+SUMIFS(#REF!,#REF!,E$2,#REF!,E$3,#REF!,Таблица_LOGINS.accdb[[#This Row],[Логин SAP]])","v":{"$error":"#REF!"}},{"$f":"SUMIFS(#REF!,#REF!,E$2,#REF!,E$3,#REF!,Таблица_LOGINS.accdb[[#This Row],[Логин]])+SUMIFS(#REF!,#REF!,E$2,#REF!,E$3,#REF!,Таблица_LOGINS.accdb[[#This Row],[Логин SAP]])","v":{"$error":"#REF!"}},{"$f":"SUM(Таблица_LOGINS.accdb[[#This Row],[Receiving]:[Putaway]])","v":{"$error":"#REF!"}},{"$f":"SUMIFS(#REF!,#REF!,E$2,#REF!,E$3,#REF!,Таблица_LOGINS.accdb[[#This Row],[Логин]])+SUMIFS(#REF!,#REF!,E$2,#REF!,E$3,#REF!,Таблица_LOGINS.accdb[[#This Row],[Логин SAP]])","v":{"$error":"#REF!"}},{"$f":"SUMIFS(#REF!,#REF!,E$2,#REF!,E$3,#REF!,Таблица_LOGINS.accdb[[#This Row],[Логин]])+SUMIFS(#REF!,#REF!,E$2,#REF!,E$3,#REF!,Таблица_LOGINS.accdb[[#This Row],[Логин SAP]])","v":{"$error":"#REF!"}},{"$f":"IFERROR(Таблица_LOGINS.accdb[[#This Row],[Mist Receiving]]/Таблица_LOGINS.accdb[[#This Row],[Receiving]],0)","v":0},{"$f":"IFERROR(Таблица_LOGINS.accdb[[#This Row],[Mist Putaway ]]/Таблица_LOGINS.accdb[[#This Row],[Putaway]],0)","v":0},{"$f":"SUM(Таблица_LOGINS.accdb[[#This Row],[% mistake receiving]:[% mistake putaway]])","v":0},{"$f":"SUMIFS(#REF!,#REF!,E$2,#REF!,E$3,#REF!,Таблица_LOGINS.accdb[[#This Row],[Логин]])+SUMIFS(#REF!,#REF!,E$2,#REF!,E$3,#REF!,Таблица_LOGINS.accdb[[#This Row],[Логин SAP]])","v":{"$error":"#REF!"}},{"$f":"SUMIFS(#REF!,#REF!,E$2,#REF!,E$3,#REF!,Таблица_LOGINS.accdb[[#This Row],[Логин]])+SUMIFS(#REF!,#REF!,E$2,#REF!,E$3,#REF!,Таблица_LOGINS.accdb[[#This Row],[Логин SAP]])","v":{"$error":"#REF!"}},{"$f":"SUM(Таблица_LOGINS.accdb[[#This Row],[Picked]:[Packed]])","v":{"$error":"#REF!"}},{"$f":"SUMIFS(#REF!,#REF!,E$2,#REF!,E$3,#REF!,Таблица_LOGINS.accdb[[#This Row],[Логин]],#REF!,\"ZA1R\")+SUMIFS(#REF!,#REF!,E$2,#REF!,E$3,#REF!,Таблица_LOGINS.accdb[[#This Row],[Логин]],#REF!,\"ZB1R\")+SUMIFS(#REF!,#REF!,E$2,#REF!,E$3,#REF!,Таблица_LOGINS.accdb[[#This Row],[Логин SAP]],#REF!,\"ZA1R\")+SUMIFS(#REF!,#REF!,E$2,#REF!,E$3,#REF!,Таблица_LOGINS.accdb[[#This Row],[Логин SAP]],#REF!,\"ZB1R\")","v":{"$error":"#REF!"}},{"$f":"SUMIFS(#REF!,#REF!,E$2,#REF!,E$3,#REF!,Таблица_LOGINS.accdb[[#This Row],[Логин]],#REF!,\"ZB1R\")+SUMIFS(#REF!,#REF!,E$2,#REF!,E$3,#REF!,Таблица_LOGINS.accdb[[#This Row],[Логин SAP]],#REF!,\"ZB1R\")+SUMIFS(#REF!,#REF!,E$2,#REF!,E$3,#REF!,Таблица_LOGINS.accdb[[#This Row],[Логин]],#REF!,\"ZA1R\")+SUMIFS(#REF!,#REF!,E$2,#REF!,E$3,#REF!,Таблица_LOGINS.accdb[[#This Row],[Логин SAP]],#REF!,\"ZA1R\")","v":{"$error":"#REF!"}},{"$f":"SUMIFS(#REF!,#REF!,E$2,#REF!,E$3,#REF!,Таблица_LOGINS.accdb[[#This Row],[Логин]],#REF!,\"ZG1R\")+SUMIFS(#REF!,#REF!,E$2,#REF!,E$3,#REF!,Таблица_LOGINS.accdb[[#This Row],[Логин SAP]],#REF!,\"ZG1R\")","v":{"$error":"#REF!"}},{"$f":"SUMIFS(#REF!,#REF!,E$2,#REF!,E$3,#REF!,Таблица_LOGINS.accdb[[#This Row],[Логин]],#REF!,\"ZG1R\")+SUMIFS(#REF!,#REF!,E$2,#REF!,E$3,#REF!,Таблица_LOGINS.accdb[[#This Row],[Логин SAP]],#REF!,\"ZG1R\")","v":{"$error":"#REF!"}},{"$f":"SUMIFS(#REF!,#REF!,E$2,#REF!,E$3,#REF!,Таблица_LOGINS.accdb[[#This Row],[Логин]],#REF!,\"ZC3R\")+SUMIFS(#REF!,#REF!,E$2,#REF!,E$3,#REF!,Таблица_LOGINS.accdb[[#This Row],[Логин SAP]],#REF!,\"ZC3R\")","v":{"$error":"#REF!"}},{"$f":"SUMIFS(#REF!,#REF!,E$2,#REF!,E$3,#REF!,Таблица_LOGINS.accdb[[#This Row],[Логин]],#REF!,\"ZC3R\")+SUMIFS(#REF!,#REF!,E$2,#REF!,E$3,#REF!,Таблица_LOGINS.accdb[[#This Row],[Логин SAP]],#REF!,\"ZC3R\")","v":{"$error":"#REF!"}},null,null,null,{"$f":"SUMIFS(#REF!,#REF!,E$2,#REF!,E$3,#REF!,Таблица_LOGINS.accdb[[#This Row],[Логин]],#REF!,\"ZA1R\")+SUMIFS(#REF!,#REF!,E$2,#REF!,E$3,#REF!,Таблица_LOGINS.accdb[[#This Row],[Логин SAP]],#REF!,\"ZA1R\")+SUMIFS(#REF!,#REF!,E$2,#REF!,E$3,#REF!,Таблица_LOGINS.accdb[[#This Row],[Логин]],#REF!,\"ZB1R\")+SUMIFS(#REF!,#REF!,E$2,#REF!,E$3,#REF!,Таблица_LOGINS.accdb[[#This Row],[Логин SAP]],#REF!,\"ZB1R\")","v":{"$error":"#REF!"}},{"$f":"SUMIFS(#REF!,#REF!,E$2,#REF!,E$3,#REF!,Таблица_LOGINS.accdb[[#This Row],[Логин]],#REF!,\"ZB1R\")+SUMIFS(#REF!,#REF!,E$2,#REF!,E$3,#REF!,Таблица_LOGINS.accdb[[#This Row],[Логин SAP]],#REF!,\"ZB1R\")+SUMIFS(#REF!,#REF!,E$2,#REF!,E$3,#REF!,Таблица_LOGINS.accdb[[#This Row],[Логин]],#REF!,\"ZA1R\")+SUMIFS(#REF!,#REF!,E$2,#REF!,E$3,#REF!,Таблица_LOGINS.accdb[[#This Row],[Логин SAP]],#REF!,\"ZA1R\")","v":{"$error":"#REF!"}},{"$f":"SUMIFS(#REF!,#REF!,E$2,#REF!,E$3,#REF!,Таблица_LOGINS.accdb[[#This Row],[Логин]],#REF!,\"ZG1R\")+SUMIFS(#REF!,#REF!,E$2,#REF!,E$3,#REF!,Таблица_LOGINS.accdb[[#This Row],[Логин SAP]],#REF!,\"ZG1R\")","v":{"$error":"#REF!"}},{"$f":"SUMIFS(#REF!,#REF!,E$2,#REF!,E$3,#REF!,Таблица_LOGINS.accdb[[#This Row],[Логин]],#REF!,\"ZG1R\")+SUMIFS(#REF!,#REF!,E$2,#REF!,E$3,#REF!,Таблица_LOGINS.accdb[[#This Row],[Логин SAP]],#REF!,\"ZG1R\")","v":{"$error":"#REF!"}},{"$f":"SUMIFS(#REF!,#REF!,E$2,#REF!,E$3,#REF!,Таблица_LOGINS.accdb[[#This Row],[Логин]],#REF!,\"ZC3R\")+SUMIFS(#REF!,#REF!,E$2,#REF!,E$3,#REF!,Таблица_LOGINS.accdb[[#This Row],[Логин SAP]],#REF!,\"ZC3R\")","v":{"$error":"#REF!"}},{"$f":"SUMIFS(#REF!,#REF!,E$2,#REF!,E$3,#REF!,Таблица_LOGINS.accdb[[#This Row],[Логин]],#REF!,\"ZC3R\")+SUMIFS(#REF!,#REF!,E$2,#REF!,E$3,#REF!,Таблица_LOGINS.accdb[[#This Row],[Логин SAP]],#REF!,\"ZC3R\")","v":{"$error":"#REF!"}},{"$error":"#REF!"},{"$error":"#REF!"},{"$f":"IFERROR(Таблица_LOGINS.accdb[[#This Row],[Mistakes of picking (conf)]]/Таблица_LOGINS.accdb[[#This Row],[Picked]],0)","v":0},{"$f":"IFERROR(Таблица_LOGINS.accdb[[#This Row],[Mistakes of packing (conf)]]/Таблица_LOGINS.accdb[[#This Row],[Packed]],0)","v":0},{"$f":"SUM(Таблица_LOGINS.accdb[[#This Row],[% mistake picking]:[% mistake packing]])","v":0},{"$error":"#REF!"},0]
[null,1729,"Neovia","STOCK CONTROL",8,"Кожевникова Ирина Геннадьевна","KOGEVNIKIR","DVRXKIG","Старший специалист группы складского учета","Сток-Контроль",false,{"$f":"SUMIFS(#REF!,#REF!,E$2,#REF!,E$3,#REF!,Таблица_LOGINS.accdb[[#This Row],[Логин]])+SUMIFS(#REF!,#REF!,E$2,#REF!,E$3,#REF!,Таблица_LOGINS.accdb[[#This Row],[Логин SAP]])","v":{"$error":"#REF!"}},{"$f":"SUMIFS(#REF!,#REF!,E$2,#REF!,E$3,#REF!,Таблица_LOGINS.accdb[[#This Row],[Логин]])+SUMIFS(#REF!,#REF!,E$2,#REF!,E$3,#REF!,Таблица_LOGINS.accdb[[#This Row],[Логин SAP]])","v":{"$error":"#REF!"}},{"$f":"SUM(Таблица_LOGINS.accdb[[#This Row],[Receiving]:[Putaway]])","v":{"$error":"#REF!"}},{"$f":"SUMIFS(#REF!,#REF!,E$2,#REF!,E$3,#REF!,Таблица_LOGINS.accdb[[#This Row],[Логин]])+SUMIFS(#REF!,#REF!,E$2,#REF!,E$3,#REF!,Таблица_LOGINS.accdb[[#This Row],[Логин SAP]])","v":{"$error":"#REF!"}},{"$f":"SUMIFS(#REF!,#REF!,E$2,#REF!,E$3,#REF!,Таблица_LOGINS.accdb[[#This Row],[Логин]])+SUMIFS(#REF!,#REF!,E$2,#REF!,E$3,#REF!,Таблица_LOGINS.accdb[[#This Row],[Логин SAP]])","v":{"$error":"#REF!"}},{"$f":"IFERROR(Таблица_LOGINS.accdb[[#This Row],[Mist Receiving]]/Таблица_LOGINS.accdb[[#This Row],[Receiving]],0)","v":0},{"$f":"IFERROR(Таблица_LOGINS.accdb[[#This Row],[Mist Putaway ]]/Таблица_LOGINS.accdb[[#This Row],[Putaway]],0)","v":0},{"$f":"SUM(Таблица_LOGINS.accdb[[#This Row],[% mistake receiving]:[% mistake putaway]])","v":0},{"$f":"SUMIFS(#REF!,#REF!,E$2,#REF!,E$3,#REF!,Таблица_LOGINS.accdb[[#This Row],[Логин]])+SUMIFS(#REF!,#REF!,E$2,#REF!,E$3,#REF!,Таблица_LOGINS.accdb[[#This Row],[Логин SAP]])","v":{"$error":"#REF!"}},{"$f":"SUMIFS(#REF!,#REF!,E$2,#REF!,E$3,#REF!,Таблица_LOGINS.accdb[[#This Row],[Логин]])+SUMIFS(#REF!,#REF!,E$2,#REF!,E$3,#REF!,Таблица_LOGINS.accdb[[#This Row],[Логин SAP]])","v":{"$error":"#REF!"}},{"$f":"SUM(Таблица_LOGINS.accdb[[#This Row],[Picked]:[Packed]])","v":{"$error":"#REF!"}},{"$f":"SUMIFS(#REF!,#REF!,E$2,#REF!,E$3,#REF!,Таблица_LOGINS.accdb[[#This Row],[Логин]],#REF!,\"ZA1R\")+SUMIFS(#REF!,#REF!,E$2,#REF!,E$3,#REF!,Таблица_LOGINS.accdb[[#This Row],[Логин]],#REF!,\"ZB1R\")+SUMIFS(#REF!,#REF!,E$2,#REF!,E$3,#REF!,Таблица_LOGINS.accdb[[#This Row],[Логин SAP]],#REF!,\"ZA1R\")+SUMIFS(#REF!,#REF!,E$2,#REF!,E$3,#REF!,Таблица_LOGINS.accdb[[#This Row],[Логин SAP]],#REF!,\"ZB1R\")","v":{"$error":"#REF!"}},{"$f":"SUMIFS(#REF!,#REF!,E$2,#REF!,E$3,#REF!,Таблица_LOGINS.accdb[[#This Row],[Логин]],#REF!,\"ZB1R\")+SUMIFS(#REF!,#REF!,E$2,#REF!,E$3,#REF!,Таблица_LOGINS.accdb[[#This Row],[Логин SAP]],#REF!,\"ZB1R\")+SUMIFS(#REF!,#REF!,E$2,#REF!,E$3,#REF!,Таблица_LOGINS.accdb[[#This Row],[Логин]],#REF!,\"ZA1R\")+SUMIFS(#REF!,#REF!,E$2,#REF!,E$3,#REF!,Таблица_LOGINS.accdb[[#This Row],[Логин SAP]],#REF!,\"ZA1R\")","v":{"$error":"#REF!"}},{"$f":"SUMIFS(#REF!,#REF!,E$2,#REF!,E$3,#REF!,Таблица_LOGINS.accdb[[#This Row],[Логин]],#REF!,\"ZG1R\")+SUMIFS(#REF!,#REF!,E$2,#REF!,E$3,#REF!,Таблица_LOGINS.accdb[[#This Row],[Логин SAP]],#REF!,\"ZG1R\")","v":{"$error":"#REF!"}},{"$f":"SUMIFS(#REF!,#REF!,E$2,#REF!,E$3,#REF!,Таблица_LOGINS.accdb[[#This Row],[Логин]],#REF!,\"ZG1R\")+SUMIFS(#REF!,#REF!,E$2,#REF!,E$3,#REF!,Таблица_LOGINS.accdb[[#This Row],[Логин SAP]],#REF!,\"ZG1R\")","v":{"$error":"#REF!"}},{"$f":"SUMIFS(#REF!,#REF!,E$2,#REF!,E$3,#REF!,Таблица_LOGINS.accdb[[#This Row],[Логин]],#REF!,\"ZC3R\")+SUMIFS(#REF!,#REF!,E$2,#REF!,E$3,#REF!,Таблица_LOGINS.accdb[[#This Row],[Логин SAP]],#REF!,\"ZC3R\")","v":{"$error":"#REF!"}},{"$f":"SUMIFS(#REF!,#REF!,E$2,#REF!,E$3,#REF!,Таблица_LOGINS.accdb[[#This Row],[Логин]],#REF!,\"ZC3R\")+SUMIFS(#REF!,#REF!,E$2,#REF!,E$3,#REF!,Таблица_LOGINS.accdb[[#This Row],[Логин SAP]],#REF!,\"ZC3R\")","v":{"$error":"#REF!"}},null,null,null,{"$f":"SUMIFS(#REF!,#REF!,E$2,#REF!,E$3,#REF!,Таблица_LOGINS.accdb[[#This Row],[Логин]],#REF!,\"ZA1R\")+SUMIFS(#REF!,#REF!,E$2,#REF!,E$3,#REF!,Таблица_LOGINS.accdb[[#This Row],[Логин SAP]],#REF!,\"ZA1R\")+SUMIFS(#REF!,#REF!,E$2,#REF!,E$3,#REF!,Таблица_LOGINS.accdb[[#This Row],[Логин]],#REF!,\"ZB1R\")+SUMIFS(#REF!,#REF!,E$2,#REF!,E$3,#REF!,Таблица_LOGINS.accdb[[#This Row],[Логин SAP]],#REF!,\"ZB1R\")","v":{"$error":"#REF!"}},{"$f":"SUMIFS(#REF!,#REF!,E$2,#REF!,E$3,#REF!,Таблица_LOGINS.accdb[[#This Row],[Логин]],#REF!,\"ZB1R\")+SUMIFS(#REF!,#REF!,E$2,#REF!,E$3,#REF!,Таблица_LOGINS.accdb[[#This Row],[Логин SAP]],#REF!,\"ZB1R\")+SUMIFS(#REF!,#REF!,E$2,#REF!,E$3,#REF!,Таблица_LOGINS.accdb[[#This Row],[Логин]],#REF!,\"ZA1R\")+SUMIFS(#REF!,#REF!,E$2,#REF!,E$3,#REF!,Таблица_LOGINS.accdb[[#This Row],[Логин SAP]],#REF!,\"ZA1R\")","v":{"$error":"#REF!"}},{"$f":"SUMIFS(#REF!,#REF!,E$2,#REF!,E$3,#REF!,Таблица_LOGINS.accdb[[#This Row],[Логин]],#REF!,\"ZG1R\")+SUMIFS(#REF!,#REF!,E$2,#REF!,E$3,#REF!,Таблица_LOGINS.accdb[[#This Row],[Логин SAP]],#REF!,\"ZG1R\")","v":{"$error":"#REF!"}},{"$f":"SUMIFS(#REF!,#REF!,E$2,#REF!,E$3,#REF!,Таблица_LOGINS.accdb[[#This Row],[Логин]],#REF!,\"ZG1R\")+SUMIFS(#REF!,#REF!,E$2,#REF!,E$3,#REF!,Таблица_LOGINS.accdb[[#This Row],[Логин SAP]],#REF!,\"ZG1R\")","v":{"$error":"#REF!"}},{"$f":"SUMIFS(#REF!,#REF!,E$2,#REF!,E$3,#REF!,Таблица_LOGINS.accdb[[#This Row],[Логин]],#REF!,\"ZC3R\")+SUMIFS(#REF!,#REF!,E$2,#REF!,E$3,#REF!,Таблица_LOGINS.accdb[[#This Row],[Логин SAP]],#REF!,\"ZC3R\")","v":{"$error":"#REF!"}},{"$f":"SUMIFS(#REF!,#REF!,E$2,#REF!,E$3,#REF!,Таблица_LOGINS.accdb[[#This Row],[Логин]],#REF!,\"ZC3R\")+SUMIFS(#REF!,#REF!,E$2,#REF!,E$3,#REF!,Таблица_LOGINS.accdb[[#This Row],[Логин SAP]],#REF!,\"ZC3R\")","v":{"$error":"#REF!"}},{"$error":"#REF!"},{"$error":"#REF!"},{"$f":"IFERROR(Таблица_LOGINS.accdb[[#This Row],[Mistakes of picking (conf)]]/Таблица_LOGINS.accdb[[#This Row],[Picked]],0)","v":0},{"$f":"IFERROR(Таблица_LOGINS.accdb[[#This Row],[Mistakes of packing (conf)]]/Таблица_LOGINS.accdb[[#This Row],[Packed]],0)","v":0},{"$f":"SUM(Таблица_LOGINS.accdb[[#This Row],[% mistake picking]:[% mistake packing]])","v":0},{"$error":"#REF!"},0]
[null,1699,"Neovia","STOCK CONTROL",8,"Хрипков Максим Николаевич",null,"DVRXHMN","Старший Администратор БД","Сток-Контроль",false,{"$f":"SUMIFS(#REF!,#REF!,E$2,#REF!,E$3,#REF!,Таблица_LOGINS.accdb[[#This Row],[Логин]])+SUMIFS(#REF!,#REF!,E$2,#REF!,E$3,#REF!,Таблица_LOGINS.accdb[[#This Row],[Логин SAP]])","v":{"$error":"#REF!"}},{"$f":"SUMIFS(#REF!,#REF!,E$2,#REF!,E$3,#REF!,Таблица_LOGINS.accdb[[#This Row],[Логин]])+SUMIFS(#REF!,#REF!,E$2,#REF!,E$3,#REF!,Таблица_LOGINS.accdb[[#This Row],[Логин SAP]])","v":{"$error":"#REF!"}},{"$f":"SUM(Таблица_LOGINS.accdb[[#This Row],[Receiving]:[Putaway]])","v":{"$error":"#REF!"}},{"$f":"SUMIFS(#REF!,#REF!,E$2,#REF!,E$3,#REF!,Таблица_LOGINS.accdb[[#This Row],[Логин]])+SUMIFS(#REF!,#REF!,E$2,#REF!,E$3,#REF!,Таблица_LOGINS.accdb[[#This Row],[Логин SAP]])","v":{"$error":"#REF!"}},{"$f":"SUMIFS(#REF!,#REF!,E$2,#REF!,E$3,#REF!,Таблица_LOGINS.accdb[[#This Row],[Логин]])+SUMIFS(#REF!,#REF!,E$2,#REF!,E$3,#REF!,Таблица_LOGINS.accdb[[#This Row],[Логин SAP]])","v":{"$error":"#REF!"}},{"$f":"IFERROR(Таблица_LOGINS.accdb[[#This Row],[Mist Receiving]]/Таблица_LOGINS.accdb[[#This Row],[Receiving]],0)","v":0},{"$f":"IFERROR(Таблица_LOGINS.accdb[[#This Row],[Mist Putaway ]]/Таблица_LOGINS.accdb[[#This Row],[Putaway]],0)","v":0},{"$f":"SUM(Таблица_LOGINS.accdb[[#This Row],[% mistake receiving]:[% mistake putaway]])","v":0},{"$f":"SUMIFS(#REF!,#REF!,E$2,#REF!,E$3,#REF!,Таблица_LOGINS.accdb[[#This Row],[Логин]])+SUMIFS(#REF!,#REF!,E$2,#REF!,E$3,#REF!,Таблица_LOGINS.accdb[[#This Row],[Логин SAP]])","v":{"$error":"#REF!"}},{"$f":"SUMIFS(#REF!,#REF!,E$2,#REF!,E$3,#REF!,Таблица_LOGINS.accdb[[#This Row],[Логин]])+SUMIFS(#REF!,#REF!,E$2,#REF!,E$3,#REF!,Таблица_LOGINS.accdb[[#This Row],[Логин SAP]])","v":{"$error":"#REF!"}},{"$f":"SUM(Таблица_LOGINS.accdb[[#This Row],[Picked]:[Packed]])","v":{"$error":"#REF!"}},{"$f":"SUMIFS(#REF!,#REF!,E$2,#REF!,E$3,#REF!,Таблица_LOGINS.accdb[[#This Row],[Логин]],#REF!,\"ZA1R\")+SUMIFS(#REF!,#REF!,E$2,#REF!,E$3,#REF!,Таблица_LOGINS.accdb[[#This Row],[Логин]],#REF!,\"ZB1R\")+SUMIFS(#REF!,#REF!,E$2,#REF!,E$3,#REF!,Таблица_LOGINS.accdb[[#This Row],[Логин SAP]],#REF!,\"ZA1R\")+SUMIFS(#REF!,#REF!,E$2,#REF!,E$3,#REF!,Таблица_LOGINS.accdb[[#This Row],[Логин SAP]],#REF!,\"ZB1R\")","v":{"$error":"#REF!"}},{"$f":"SUMIFS(#REF!,#REF!,E$2,#REF!,E$3,#REF!,Таблица_LOGINS.accdb[[#This Row],[Логин]],#REF!,\"ZB1R\")+SUMIFS(#REF!,#REF!,E$2,#REF!,E$3,#REF!,Таблица_LOGINS.accdb[[#This Row],[Логин SAP]],#REF!,\"ZB1R\")+SUMIFS(#REF!,#REF!,E$2,#REF!,E$3,#REF!,Таблица_LOGINS.accdb[[#This Row],[Логин]],#REF!,\"ZA1R\")+SUMIFS(#REF!,#REF!,E$2,#REF!,E$3,#REF!,Таблица_LOGINS.accdb[[#This Row],[Логин SAP]],#REF!,\"ZA1R\")","v":{"$error":"#REF!"}},{"$f":"SUMIFS(#REF!,#REF!,E$2,#REF!,E$3,#REF!,Таблица_LOGINS.accdb[[#This Row],[Логин]],#REF!,\"ZG1R\")+SUMIFS(#REF!,#REF!,E$2,#REF!,E$3,#REF!,Таблица_LOGINS.accdb[[#This Row],[Логин SAP]],#REF!,\"ZG1R\")","v":{"$error":"#REF!"}},{"$f":"SUMIFS(#REF!,#REF!,E$2,#REF!,E$3,#REF!,Таблица_LOGINS.accdb[[#This Row],[Логин]],#REF!,\"ZG1R\")+SUMIFS(#REF!,#REF!,E$2,#REF!,E$3,#REF!,Таблица_LOGINS.accdb[[#This Row],[Логин SAP]],#REF!,\"ZG1R\")","v":{"$error":"#REF!"}},{"$f":"SUMIFS(#REF!,#REF!,E$2,#REF!,E$3,#REF!,Таблица_LOGINS.accdb[[#This Row],[Логин]],#REF!,\"ZC3R\")+SUMIFS(#REF!,#REF!,E$2,#REF!,E$3,#REF!,Таблица_LOGINS.accdb[[#This Row],[Логин SAP]],#REF!,\"ZC3R\")","v":{"$error":"#REF!"}},{"$f":"SUMIFS(#REF!,#REF!,E$2,#REF!,E$3,#REF!,Таблица_LOGINS.accdb[[#This Row],[Логин]],#REF!,\"ZC3R\")+SUMIFS(#REF!,#REF!,E$2,#REF!,E$3,#REF!,Таблица_LOGINS.accdb[[#This Row],[Логин SAP]],#REF!,\"ZC3R\")","v":{"$error":"#REF!"}},null,null,null,{"$f":"SUMIFS(#REF!,#REF!,E$2,#REF!,E$3,#REF!,Таблица_LOGINS.accdb[[#This Row],[Логин]],#REF!,\"ZA1R\")+SUMIFS(#REF!,#REF!,E$2,#REF!,E$3,#REF!,Таблица_LOGINS.accdb[[#This Row],[Логин SAP]],#REF!,\"ZA1R\")+SUMIFS(#REF!,#REF!,E$2,#REF!,E$3,#REF!,Таблица_LOGINS.accdb[[#This Row],[Логин]],#REF!,\"ZB1R\")+SUMIFS(#REF!,#REF!,E$2,#REF!,E$3,#REF!,Таблица_LOGINS.accdb[[#This Row],[Логин SAP]],#REF!,\"ZB1R\")","v":{"$error":"#REF!"}},{"$f":"SUMIFS(#REF!,#REF!,E$2,#REF!,E$3,#REF!,Таблица_LOGINS.accdb[[#This Row],[Логин]],#REF!,\"ZB1R\")+SUMIFS(#REF!,#REF!,E$2,#REF!,E$3,#REF!,Таблица_LOGINS.accdb[[#This Row],[Логин SAP]],#REF!,\"ZB1R\")+SUMIFS(#REF!,#REF!,E$2,#REF!,E$3,#REF!,Таблица_LOGINS.accdb[[#This Row],[Логин]],#REF!,\"ZA1R\")+SUMIFS(#REF!,#REF!,E$2,#REF!,E$3,#REF!,Таблица_LOGINS.accdb[[#This Row],[Логин SAP]],#REF!,\"ZA1R\")","v":{"$error":"#REF!"}},{"$f":"SUMIFS(#REF!,#REF!,E$2,#REF!,E$3,#REF!,Таблица_LOGINS.accdb[[#This Row],[Логин]],#REF!,\"ZG1R\")+SUMIFS(#REF!,#REF!,E$2,#REF!,E$3,#REF!,Таблица_LOGINS.accdb[[#This Row],[Логин SAP]],#REF!,\"ZG1R\")","v":{"$error":"#REF!"}},{"$f":"SUMIFS(#REF!,#REF!,E$2,#REF!,E$3,#REF!,Таблица_LOGINS.accdb[[#This Row],[Логин]],#REF!,\"ZG1R\")+SUMIFS(#REF!,#REF!,E$2,#REF!,E$3,#REF!,Таблица_LOGINS.accdb[[#This Row],[Логин SAP]],#REF!,\"ZG1R\")","v":{"$error":"#REF!"}},{"$f":"SUMIFS(#REF!,#REF!,E$2,#REF!,E$3,#REF!,Таблица_LOGINS.accdb[[#This Row],[Логин]],#REF!,\"ZC3R\")+SUMIFS(#REF!,#REF!,E$2,#REF!,E$3,#REF!,Таблица_LOGINS.accdb[[#This Row],[Логин SAP]],#REF!,\"ZC3R\")","v":{"$error":"#REF!"}},{"$f":"SUMIFS(#REF!,#REF!,E$2,#REF!,E$3,#REF!,Таблица_LOGINS.accdb[[#This Row],[Логин]],#REF!,\"ZC3R\")+SUMIFS(#REF!,#REF!,E$2,#REF!,E$3,#REF!,Таблица_LOGINS.accdb[[#This Row],[Логин SAP]],#REF!,\"ZC3R\")","v":{"$error":"#REF!"}},{"$error":"#REF!"},{"$error":"#REF!"},{"$f":"IFERROR(Таблица_LOGINS.accdb[[#This Row],[Mistakes of picking (conf)]]/Таблица_LOGINS.accdb[[#This Row],[Picked]],0)","v":0},{"$f":"IFERROR(Таблица_LOGINS.accdb[[#This Row],[Mistakes of packing (conf)]]/Таблица_LOGINS.accdb[[#This Row],[Packed]],0)","v":0},{"$f":"SUM(Таблица_LOGINS.accdb[[#This Row],[% mistake picking]:[% mistake packing]])","v":0},{"$error":"#REF!"},0]
[null,1466,"STAZHER","OUTBOUND",9,"Стажер1 (3210)","STAZHOR1",null,"Стажер","Стажер",false,{"$f":"SUMIFS(#REF!,#REF!,E$2,#REF!,E$3,#REF!,Таблица_LOGINS.accdb[[#This Row],[Логин]])+SUMIFS(#REF!,#REF!,E$2,#REF!,E$3,#REF!,Таблица_LOGINS.accdb[[#This Row],[Логин SAP]])","v":{"$error":"#REF!"}},{"$f":"SUMIFS(#REF!,#REF!,E$2,#REF!,E$3,#REF!,Таблица_LOGINS.accdb[[#This Row],[Логин]])+SUMIFS(#REF!,#REF!,E$2,#REF!,E$3,#REF!,Таблица_LOGINS.accdb[[#This Row],[Логин SAP]])","v":{"$error":"#REF!"}},{"$f":"SUM(Таблица_LOGINS.accdb[[#This Row],[Receiving]:[Putaway]])","v":{"$error":"#REF!"}},{"$f":"SUMIFS(#REF!,#REF!,E$2,#REF!,E$3,#REF!,Таблица_LOGINS.accdb[[#This Row],[Логин]])+SUMIFS(#REF!,#REF!,E$2,#REF!,E$3,#REF!,Таблица_LOGINS.accdb[[#This Row],[Логин SAP]])","v":{"$error":"#REF!"}},{"$f":"SUMIFS(#REF!,#REF!,E$2,#REF!,E$3,#REF!,Таблица_LOGINS.accdb[[#This Row],[Логин]])+SUMIFS(#REF!,#REF!,E$2,#REF!,E$3,#REF!,Таблица_LOGINS.accdb[[#This Row],[Логин SAP]])","v":{"$error":"#REF!"}},{"$f":"IFERROR(Таблица_LOGINS.accdb[[#This Row],[Mist Receiving]]/Таблица_LOGINS.accdb[[#This Row],[Receiving]],0)","v":0},{"$f":"IFERROR(Таблица_LOGINS.accdb[[#This Row],[Mist Putaway ]]/Таблица_LOGINS.accdb[[#This Row],[Putaway]],0)","v":0},{"$f":"SUM(Таблица_LOGINS.accdb[[#This Row],[% mistake receiving]:[% mistake putaway]])","v":0},{"$f":"SUMIFS(#REF!,#REF!,E$2,#REF!,E$3,#REF!,Таблица_LOGINS.accdb[[#This Row],[Логин]])+SUMIFS(#REF!,#REF!,E$2,#REF!,E$3,#REF!,Таблица_LOGINS.accdb[[#This Row],[Логин SAP]])","v":{"$error":"#REF!"}},{"$f":"SUMIFS(#REF!,#REF!,E$2,#REF!,E$3,#REF!,Таблица_LOGINS.accdb[[#This Row],[Логин]])+SUMIFS(#REF!,#REF!,E$2,#REF!,E$3,#REF!,Таблица_LOGINS.accdb[[#This Row],[Логин SAP]])","v":{"$error":"#REF!"}},{"$f":"SUM(Таблица_LOGINS.accdb[[#This Row],[Picked]:[Packed]])","v":{"$error":"#REF!"}},{"$f":"SUMIFS(#REF!,#REF!,E$2,#REF!,E$3,#REF!,Таблица_LOGINS.accdb[[#This Row],[Логин]],#REF!,\"ZA1R\")+SUMIFS(#REF!,#REF!,E$2,#REF!,E$3,#REF!,Таблица_LOGINS.accdb[[#This Row],[Логин]],#REF!,\"ZB1R\")+SUMIFS(#REF!,#REF!,E$2,#REF!,E$3,#REF!,Таблица_LOGINS.accdb[[#This Row],[Логин SAP]],#REF!,\"ZA1R\")+SUMIFS(#REF!,#REF!,E$2,#REF!,E$3,#REF!,Таблица_LOGINS.accdb[[#This Row],[Логин SAP]],#REF!,\"ZB1R\")","v":{"$error":"#REF!"}},{"$f":"SUMIFS(#REF!,#REF!,E$2,#REF!,E$3,#REF!,Таблица_LOGINS.accdb[[#This Row],[Логин]],#REF!,\"ZB1R\")+SUMIFS(#REF!,#REF!,E$2,#REF!,E$3,#REF!,Таблица_LOGINS.accdb[[#This Row],[Логин SAP]],#REF!,\"ZB1R\")+SUMIFS(#REF!,#REF!,E$2,#REF!,E$3,#REF!,Таблица_LOGINS.accdb[[#This Row],[Логин]],#REF!,\"ZA1R\")+SUMIFS(#REF!,#REF!,E$2,#REF!,E$3,#REF!,Таблица_LOGINS.accdb[[#This Row],[Логин SAP]],#REF!,\"ZA1R\")","v":{"$error":"#REF!"}},{"$f":"SUMIFS(#REF!,#REF!,E$2,#REF!,E$3,#REF!,Таблица_LOGINS.accdb[[#This Row],[Логин]],#REF!,\"ZG1R\")+SUMIFS(#REF!,#REF!,E$2,#REF!,E$3,#REF!,Таблица_LOGINS.accdb[[#This Row],[Логин SAP]],#REF!,\"ZG1R\")","v":{"$error":"#REF!"}},{"$f":"SUMIFS(#REF!,#REF!,E$2,#REF!,E$3,#REF!,Таблица_LOGINS.accdb[[#This Row],[Логин]],#REF!,\"ZG1R\")+SUMIFS(#REF!,#REF!,E$2,#REF!,E$3,#REF!,Таблица_LOGINS.accdb[[#This Row],[Логин SAP]],#REF!,\"ZG1R\")","v":{"$error":"#REF!"}},{"$f":"SUMIFS(#REF!,#REF!,E$2,#REF!,E$3,#REF!,Таблица_LOGINS.accdb[[#This Row],[Логин]],#REF!,\"ZC3R\")+SUMIFS(#REF!,#REF!,E$2,#REF!,E$3,#REF!,Таблица_LOGINS.accdb[[#This Row],[Логин SAP]],#REF!,\"ZC3R\")","v":{"$error":"#REF!"}},{"$f":"SUMIFS(#REF!,#REF!,E$2,#REF!,E$3,#REF!,Таблица_LOGINS.accdb[[#This Row],[Логин]],#REF!,\"ZC3R\")+SUMIFS(#REF!,#REF!,E$2,#REF!,E$3,#REF!,Таблица_LOGINS.accdb[[#This Row],[Логин SAP]],#REF!,\"ZC3R\")","v":{"$error":"#REF!"}},null,null,null,{"$f":"SUMIFS(#REF!,#REF!,E$2,#REF!,E$3,#REF!,Таблица_LOGINS.accdb[[#This Row],[Логин]],#REF!,\"ZA1R\")+SUMIFS(#REF!,#REF!,E$2,#REF!,E$3,#REF!,Таблица_LOGINS.accdb[[#This Row],[Логин SAP]],#REF!,\"ZA1R\")+SUMIFS(#REF!,#REF!,E$2,#REF!,E$3,#REF!,Таблица_LOGINS.accdb[[#This Row],[Логин]],#REF!,\"ZB1R\")+SUMIFS(#REF!,#REF!,E$2,#REF!,E$3,#REF!,Таблица_LOGINS.accdb[[#This Row],[Логин SAP]],#REF!,\"ZB1R\")","v":{"$error":"#REF!"}},{"$f":"SUMIFS(#REF!,#REF!,E$2,#REF!,E$3,#REF!,Таблица_LOGINS.accdb[[#This Row],[Логин]],#REF!,\"ZB1R\")+SUMIFS(#REF!,#REF!,E$2,#REF!,E$3,#REF!,Таблица_LOGINS.accdb[[#This Row],[Логин SAP]],#REF!,\"ZB1R\")+SUMIFS(#REF!,#REF!,E$2,#REF!,E$3,#REF!,Таблица_LOGINS.accdb[[#This Row],[Логин]],#REF!,\"ZA1R\")+SUMIFS(#REF!,#REF!,E$2,#REF!,E$3,#REF!,Таблица_LOGINS.accdb[[#This Row],[Логин SAP]],#REF!,\"ZA1R\")","v":{"$error":"#REF!"}},{"$f":"SUMIFS(#REF!,#REF!,E$2,#REF!,E$3,#REF!,Таблица_LOGINS.accdb[[#This Row],[Логин]],#REF!,\"ZG1R\")+SUMIFS(#REF!,#REF!,E$2,#REF!,E$3,#REF!,Таблица_LOGINS.accdb[[#This Row],[Логин SAP]],#REF!,\"ZG1R\")","v":{"$error":"#REF!"}},{"$f":"SUMIFS(#REF!,#REF!,E$2,#REF!,E$3,#REF!,Таблица_LOGINS.accdb[[#This Row],[Логин]],#REF!,\"ZG1R\")+SUMIFS(#REF!,#REF!,E$2,#REF!,E$3,#REF!,Таблица_LOGINS.accdb[[#This Row],[Логин SAP]],#REF!,\"ZG1R\")","v":{"$error":"#REF!"}},{"$f":"SUMIFS(#REF!,#REF!,E$2,#REF!,E$3,#REF!,Таблица_LOGINS.accdb[[#This Row],[Логин]],#REF!,\"ZC3R\")+SUMIFS(#REF!,#REF!,E$2,#REF!,E$3,#REF!,Таблица_LOGINS.accdb[[#This Row],[Логин SAP]],#REF!,\"ZC3R\")","v":{"$error":"#REF!"}},{"$f":"SUMIFS(#REF!,#REF!,E$2,#REF!,E$3,#REF!,Таблица_LOGINS.accdb[[#This Row],[Логин]],#REF!,\"ZC3R\")+SUMIFS(#REF!,#REF!,E$2,#REF!,E$3,#REF!,Таблица_LOGINS.accdb[[#This Row],[Логин SAP]],#REF!,\"ZC3R\")","v":{"$error":"#REF!"}},{"$error":"#REF!"},{"$error":"#REF!"},{"$f":"IFERROR(Таблица_LOGINS.accdb[[#This Row],[Mistakes of picking (conf)]]/Таблица_LOGINS.accdb[[#This Row],[Picked]],0)","v":0},{"$f":"IFERROR(Таблица_LOGINS.accdb[[#This Row],[Mistakes of packing (conf)]]/Таблица_LOGINS.accdb[[#This Row],[Packed]],0)","v":0},{"$f":"SUM(Таблица_LOGINS.accdb[[#This Row],[% mistake picking]:[% mistake packing]])","v":0},{"$error":"#REF!"},0]
[null,1467,"STAZHER","OUTBOUND",9,"Стажер2 (3210)","STAZHOR2",null,"Стажер","Стажер",false,{"$f":"SUMIFS(#REF!,#REF!,E$2,#REF!,E$3,#REF!,Таблица_LOGINS.accdb[[#This Row],[Логин]])+SUMIFS(#REF!,#REF!,E$2,#REF!,E$3,#REF!,Таблица_LOGINS.accdb[[#This Row],[Логин SAP]])","v":{"$error":"#REF!"}},{"$f":"SUMIFS(#REF!,#REF!,E$2,#REF!,E$3,#REF!,Таблица_LOGINS.accdb[[#This Row],[Логин]])+SUMIFS(#REF!,#REF!,E$2,#REF!,E$3,#REF!,Таблица_LOGINS.accdb[[#This Row],[Логин SAP]])","v":{"$error":"#REF!"}},{"$f":"SUM(Таблица_LOGINS.accdb[[#This Row],[Receiving]:[Putaway]])","v":{"$error":"#REF!"}},{"$f":"SUMIFS(#REF!,#REF!,E$2,#REF!,E$3,#REF!,Таблица_LOGINS.accdb[[#This Row],[Логин]])+SUMIFS(#REF!,#REF!,E$2,#REF!,E$3,#REF!,Таблица_LOGINS.accdb[[#This Row],[Логин SAP]])","v":{"$error":"#REF!"}},{"$f":"SUMIFS(#REF!,#REF!,E$2,#REF!,E$3,#REF!,Таблица_LOGINS.accdb[[#This Row],[Логин]])+SUMIFS(#REF!,#REF!,E$2,#REF!,E$3,#REF!,Таблица_LOGINS.accdb[[#This Row],[Логин SAP]])","v":{"$error":"#REF!"}},{"$f":"IFERROR(Таблица_LOGINS.accdb[[#This Row],[Mist Receiving]]/Таблица_LOGINS.accdb[[#This Row],[Receiving]],0)","v":0},{"$f":"IFERROR(Таблица_LOGINS.accdb[[#This Row],[Mist Putaway ]]/Таблица_LOGINS.accdb[[#This Row],[Putaway]],0)","v":0},{"$f":"SUM(Таблица_LOGINS.accdb[[#This Row],[% mistake receiving]:[% mistake putaway]])","v":0},{"$f":"SUMIFS(#REF!,#REF!,E$2,#REF!,E$3,#REF!,Таблица_LOGINS.accdb[[#This Row],[Логин]])+SUMIFS(#REF!,#REF!,E$2,#REF!,E$3,#REF!,Таблица_LOGINS.accdb[[#This Row],[Логин SAP]])","v":{"$error":"#REF!"}},{"$f":"SUMIFS(#REF!,#REF!,E$2,#REF!,E$3,#REF!,Таблица_LOGINS.accdb[[#This Row],[Логин]])+SUMIFS(#REF!,#REF!,E$2,#REF!,E$3,#REF!,Таблица_LOGINS.accdb[[#This Row],[Логин SAP]])","v":{"$error":"#REF!"}},{"$f":"SUM(Таблица_LOGINS.accdb[[#This Row],[Picked]:[Packed]])","v":{"$error":"#REF!"}},{"$f":"SUMIFS(#REF!,#REF!,E$2,#REF!,E$3,#REF!,Таблица_LOGINS.accdb[[#This Row],[Логин]],#REF!,\"ZA1R\")+SUMIFS(#REF!,#REF!,E$2,#REF!,E$3,#REF!,Таблица_LOGINS.accdb[[#This Row],[Логин]],#REF!,\"ZB1R\")+SUMIFS(#REF!,#REF!,E$2,#REF!,E$3,#REF!,Таблица_LOGINS.accdb[[#This Row],[Логин SAP]],#REF!,\"ZA1R\")+SUMIFS(#REF!,#REF!,E$2,#REF!,E$3,#REF!,Таблица_LOGINS.accdb[[#This Row],[Логин SAP]],#REF!,\"ZB1R\")","v":{"$error":"#REF!"}},{"$f":"SUMIFS(#REF!,#REF!,E$2,#REF!,E$3,#REF!,Таблица_LOGINS.accdb[[#This Row],[Логин]],#REF!,\"ZB1R\")+SUMIFS(#REF!,#REF!,E$2,#REF!,E$3,#REF!,Таблица_LOGINS.accdb[[#This Row],[Логин SAP]],#REF!,\"ZB1R\")+SUMIFS(#REF!,#REF!,E$2,#REF!,E$3,#REF!,Таблица_LOGINS.accdb[[#This Row],[Логин]],#REF!,\"ZA1R\")+SUMIFS(#REF!,#REF!,E$2,#REF!,E$3,#REF!,Таблица_LOGINS.accdb[[#This Row],[Логин SAP]],#REF!,\"ZA1R\")","v":{"$error":"#REF!"}},{"$f":"SUMIFS(#REF!,#REF!,E$2,#REF!,E$3,#REF!,Таблица_LOGINS.accdb[[#This Row],[Логин]],#REF!,\"ZG1R\")+SUMIFS(#REF!,#REF!,E$2,#REF!,E$3,#REF!,Таблица_LOGINS.accdb[[#This Row],[Логин SAP]],#REF!,\"ZG1R\")","v":{"$error":"#REF!"}},{"$f":"SUMIFS(#REF!,#REF!,E$2,#REF!,E$3,#REF!,Таблица_LOGINS.accdb[[#This Row],[Логин]],#REF!,\"ZG1R\")+SUMIFS(#REF!,#REF!,E$2,#REF!,E$3,#REF!,Таблица_LOGINS.accdb[[#This Row],[Логин SAP]],#REF!,\"ZG1R\")","v":{"$error":"#REF!"}},{"$f":"SUMIFS(#REF!,#REF!,E$2,#REF!,E$3,#REF!,Таблица_LOGINS.accdb[[#This Row],[Логин]],#REF!,\"ZC3R\")+SUMIFS(#REF!,#REF!,E$2,#REF!,E$3,#REF!,Таблица_LOGINS.accdb[[#This Row],[Логин SAP]],#REF!,\"ZC3R\")","v":{"$error":"#REF!"}},{"$f":"SUMIFS(#REF!,#REF!,E$2,#REF!,E$3,#REF!,Таблица_LOGINS.accdb[[#This Row],[Логин]],#REF!,\"ZC3R\")+SUMIFS(#REF!,#REF!,E$2,#REF!,E$3,#REF!,Таблица_LOGINS.accdb[[#This Row],[Логин SAP]],#REF!,\"ZC3R\")","v":{"$error":"#REF!"}},null,null,null,{"$f":"SUMIFS(#REF!,#REF!,E$2,#REF!,E$3,#REF!,Таблица_LOGINS.accdb[[#This Row],[Логин]],#REF!,\"ZA1R\")+SUMIFS(#REF!,#REF!,E$2,#REF!,E$3,#REF!,Таблица_LOGINS.accdb[[#This Row],[Логин SAP]],#REF!,\"ZA1R\")+SUMIFS(#REF!,#REF!,E$2,#REF!,E$3,#REF!,Таблица_LOGINS.accdb[[#This Row],[Логин]],#REF!,\"ZB1R\")+SUMIFS(#REF!,#REF!,E$2,#REF!,E$3,#REF!,Таблица_LOGINS.accdb[[#This Row],[Логин SAP]],#REF!,\"ZB1R\")","v":{"$error":"#REF!"}},{"$f":"SUMIFS(#REF!,#REF!,E$2,#REF!,E$3,#REF!,Таблица_LOGINS.accdb[[#This Row],[Логин]],#REF!,\"ZB1R\")+SUMIFS(#REF!,#REF!,E$2,#REF!,E$3,#REF!,Таблица_LOGINS.accdb[[#This Row],[Логин SAP]],#REF!,\"ZB1R\")+SUMIFS(#REF!,#REF!,E$2,#REF!,E$3,#REF!,Таблица_LOGINS.accdb[[#This Row],[Логин]],#REF!,\"ZA1R\")+SUMIFS(#REF!,#REF!,E$2,#REF!,E$3,#REF!,Таблица_LOGINS.accdb[[#This Row],[Логин SAP]],#REF!,\"ZA1R\")","v":{"$error":"#REF!"}},{"$f":"SUMIFS(#REF!,#REF!,E$2,#REF!,E$3,#REF!,Таблица_LOGINS.accdb[[#This Row],[Логин]],#REF!,\"ZG1R\")+SUMIFS(#REF!,#REF!,E$2,#REF!,E$3,#REF!,Таблица_LOGINS.accdb[[#This Row],[Логин SAP]],#REF!,\"ZG1R\")","v":{"$error":"#REF!"}},{"$f":"SUMIFS(#REF!,#REF!,E$2,#REF!,E$3,#REF!,Таблица_LOGINS.accdb[[#This Row],[Логин]],#REF!,\"ZG1R\")+SUMIFS(#REF!,#REF!,E$2,#REF!,E$3,#REF!,Таблица_LOGINS.accdb[[#This Row],[Логин SAP]],#REF!,\"ZG1R\")","v":{"$error":"#REF!"}},{"$f":"SUMIFS(#REF!,#REF!,E$2,#REF!,E$3,#REF!,Таблица_LOGINS.accdb[[#This Row],[Логин]],#REF!,\"ZC3R\")+SUMIFS(#REF!,#REF!,E$2,#REF!,E$3,#REF!,Таблица_LOGINS.accdb[[#This Row],[Логин SAP]],#REF!,\"ZC3R\")","v":{"$error":"#REF!"}},{"$f":"SUMIFS(#REF!,#REF!,E$2,#REF!,E$3,#REF!,Таблица_LOGINS.accdb[[#This Row],[Логин]],#REF!,\"ZC3R\")+SUMIFS(#REF!,#REF!,E$2,#REF!,E$3,#REF!,Таблица_LOGINS.accdb[[#This Row],[Логин SAP]],#REF!,\"ZC3R\")","v":{"$error":"#REF!"}},{"$error":"#REF!"},{"$error":"#REF!"},{"$f":"IFERROR(Таблица_LOGINS.accdb[[#This Row],[Mistakes of picking (conf)]]/Таблица_LOGINS.accdb[[#This Row],[Picked]],0)","v":0},{"$f":"IFERROR(Таблица_LOGINS.accdb[[#This Row],[Mistakes of packing (conf)]]/Таблица_LOGINS.accdb[[#This Row],[Packed]],0)","v":0},{"$f":"SUM(Таблица_LOGINS.accdb[[#This Row],[% mistake picking]:[% mistake packing]])","v":0},{"$error":"#REF!"},0]
[null,1468,"STAZHER","OUTBOUND",9,"Стажер3 (3210)","STAZHOR3",null,"Стажер","Стажер",false,{"$f":"SUMIFS(#REF!,#REF!,E$2,#REF!,E$3,#REF!,Таблица_LOGINS.accdb[[#This Row],[Логин]])+SUMIFS(#REF!,#REF!,E$2,#REF!,E$3,#REF!,Таблица_LOGINS.accdb[[#This Row],[Логин SAP]])","v":{"$error":"#REF!"}},{"$f":"SUMIFS(#REF!,#REF!,E$2,#REF!,E$3,#REF!,Таблица_LOGINS.accdb[[#This Row],[Логин]])+SUMIFS(#REF!,#REF!,E$2,#REF!,E$3,#REF!,Таблица_LOGINS.accdb[[#This Row],[Логин SAP]])","v":{"$error":"#REF!"}},{"$f":"SUM(Таблица_LOGINS.accdb[[#This Row],[Receiving]:[Putaway]])","v":{"$error":"#REF!"}},{"$f":"SUMIFS(#REF!,#REF!,E$2,#REF!,E$3,#REF!,Таблица_LOGINS.accdb[[#This Row],[Логин]])+SUMIFS(#REF!,#REF!,E$2,#REF!,E$3,#REF!,Таблица_LOGINS.accdb[[#This Row],[Логин SAP]])","v":{"$error":"#REF!"}},{"$f":"SUMIFS(#REF!,#REF!,E$2,#REF!,E$3,#REF!,Таблица_LOGINS.accdb[[#This Row],[Логин]])+SUMIFS(#REF!,#REF!,E$2,#REF!,E$3,#REF!,Таблица_LOGINS.accdb[[#This Row],[Логин SAP]])","v":{"$error":"#REF!"}},{"$f":"IFERROR(Таблица_LOGINS.accdb[[#This Row],[Mist Receiving]]/Таблица_LOGINS.accdb[[#This Row],[Receiving]],0)","v":0},{"$f":"IFERROR(Таблица_LOGINS.accdb[[#This Row],[Mist Putaway ]]/Таблица_LOGINS.accdb[[#This Row],[Putaway]],0)","v":0},{"$f":"SUM(Таблица_LOGINS.accdb[[#This Row],[% mistake receiving]:[% mistake putaway]])","v":0},{"$f":"SUMIFS(#REF!,#REF!,E$2,#REF!,E$3,#REF!,Таблица_LOGINS.accdb[[#This Row],[Логин]])+SUMIFS(#REF!,#REF!,E$2,#REF!,E$3,#REF!,Таблица_LOGINS.accdb[[#This Row],[Логин SAP]])","v":{"$error":"#REF!"}},{"$f":"SUMIFS(#REF!,#REF!,E$2,#REF!,E$3,#REF!,Таблица_LOGINS.accdb[[#This Row],[Логин]])+SUMIFS(#REF!,#REF!,E$2,#REF!,E$3,#REF!,Таблица_LOGINS.accdb[[#This Row],[Логин SAP]])","v":{"$error":"#REF!"}},{"$f":"SUM(Таблица_LOGINS.accdb[[#This Row],[Picked]:[Packed]])","v":{"$error":"#REF!"}},{"$f":"SUMIFS(#REF!,#REF!,E$2,#REF!,E$3,#REF!,Таблица_LOGINS.accdb[[#This Row],[Логин]],#REF!,\"ZA1R\")+SUMIFS(#REF!,#REF!,E$2,#REF!,E$3,#REF!,Таблица_LOGINS.accdb[[#This Row],[Логин]],#REF!,\"ZB1R\")+SUMIFS(#REF!,#REF!,E$2,#REF!,E$3,#REF!,Таблица_LOGINS.accdb[[#This Row],[Логин SAP]],#REF!,\"ZA1R\")+SUMIFS(#REF!,#REF!,E$2,#REF!,E$3,#REF!,Таблица_LOGINS.accdb[[#This Row],[Логин SAP]],#REF!,\"ZB1R\")","v":{"$error":"#REF!"}},{"$f":"SUMIFS(#REF!,#REF!,E$2,#REF!,E$3,#REF!,Таблица_LOGINS.accdb[[#This Row],[Логин]],#REF!,\"ZB1R\")+SUMIFS(#REF!,#REF!,E$2,#REF!,E$3,#REF!,Таблица_LOGINS.accdb[[#This Row],[Логин SAP]],#REF!,\"ZB1R\")+SUMIFS(#REF!,#REF!,E$2,#REF!,E$3,#REF!,Таблица_LOGINS.accdb[[#This Row],[Логин]],#REF!,\"ZA1R\")+SUMIFS(#REF!,#REF!,E$2,#REF!,E$3,#REF!,Таблица_LOGINS.accdb[[#This Row],[Логин SAP]],#REF!,\"ZA1R\")","v":{"$error":"#REF!"}},{"$f":"SUMIFS(#REF!,#REF!,E$2,#REF!,E$3,#REF!,Таблица_LOGINS.accdb[[#This Row],[Логин]],#REF!,\"ZG1R\")+SUMIFS(#REF!,#REF!,E$2,#REF!,E$3,#REF!,Таблица_LOGINS.accdb[[#This Row],[Логин SAP]],#REF!,\"ZG1R\")","v":{"$error":"#REF!"}},{"$f":"SUMIFS(#REF!,#REF!,E$2,#REF!,E$3,#REF!,Таблица_LOGINS.accdb[[#This Row],[Логин]],#REF!,\"ZG1R\")+SUMIFS(#REF!,#REF!,E$2,#REF!,E$3,#REF!,Таблица_LOGINS.accdb[[#This Row],[Логин SAP]],#REF!,\"ZG1R\")","v":{"$error":"#REF!"}},{"$f":"SUMIFS(#REF!,#REF!,E$2,#REF!,E$3,#REF!,Таблица_LOGINS.accdb[[#This Row],[Логин]],#REF!,\"ZC3R\")+SUMIFS(#REF!,#REF!,E$2,#REF!,E$3,#REF!,Таблица_LOGINS.accdb[[#This Row],[Логин SAP]],#REF!,\"ZC3R\")","v":{"$error":"#REF!"}},{"$f":"SUMIFS(#REF!,#REF!,E$2,#REF!,E$3,#REF!,Таблица_LOGINS.accdb[[#This Row],[Логин]],#REF!,\"ZC3R\")+SUMIFS(#REF!,#REF!,E$2,#REF!,E$3,#REF!,Таблица_LOGINS.accdb[[#This Row],[Логин SAP]],#REF!,\"ZC3R\")","v":{"$error":"#REF!"}},null,null,null,{"$f":"SUMIFS(#REF!,#REF!,E$2,#REF!,E$3,#REF!,Таблица_LOGINS.accdb[[#This Row],[Логин]],#REF!,\"ZA1R\")+SUMIFS(#REF!,#REF!,E$2,#REF!,E$3,#REF!,Таблица_LOGINS.accdb[[#This Row],[Логин SAP]],#REF!,\"ZA1R\")+SUMIFS(#REF!,#REF!,E$2,#REF!,E$3,#REF!,Таблица_LOGINS.accdb[[#This Row],[Логин]],#REF!,\"ZB1R\")+SUMIFS(#REF!,#REF!,E$2,#REF!,E$3,#REF!,Таблица_LOGINS.accdb[[#This Row],[Логин SAP]],#REF!,\"ZB1R\")","v":{"$error":"#REF!"}},{"$f":"SUMIFS(#REF!,#REF!,E$2,#REF!,E$3,#REF!,Таблица_LOGINS.accdb[[#This Row],[Логин]],#REF!,\"ZB1R\")+SUMIFS(#REF!,#REF!,E$2,#REF!,E$3,#REF!,Таблица_LOGINS.accdb[[#This Row],[Логин SAP]],#REF!,\"ZB1R\")+SUMIFS(#REF!,#REF!,E$2,#REF!,E$3,#REF!,Таблица_LOGINS.accdb[[#This Row],[Логин]],#REF!,\"ZA1R\")+SUMIFS(#REF!,#REF!,E$2,#REF!,E$3,#REF!,Таблица_LOGINS.accdb[[#This Row],[Логин SAP]],#REF!,\"ZA1R\")","v":{"$error":"#REF!"}},{"$f":"SUMIFS(#REF!,#REF!,E$2,#REF!,E$3,#REF!,Таблица_LOGINS.accdb[[#This Row],[Логин]],#REF!,\"ZG1R\")+SUMIFS(#REF!,#REF!,E$2,#REF!,E$3,#REF!,Таблица_LOGINS.accdb[[#This Row],[Логин SAP]],#REF!,\"ZG1R\")","v":{"$error":"#REF!"}},{"$f":"SUMIFS(#REF!,#REF!,E$2,#REF!,E$3,#REF!,Таблица_LOGINS.accdb[[#This Row],[Логин]],#REF!,\"ZG1R\")+SUMIFS(#REF!,#REF!,E$2,#REF!,E$3,#REF!,Таблица_LOGINS.accdb[[#This Row],[Логин SAP]],#REF!,\"ZG1R\")","v":{"$error":"#REF!"}},{"$f":"SUMIFS(#REF!,#REF!,E$2,#REF!,E$3,#REF!,Таблица_LOGINS.accdb[[#This Row],[Логин]],#REF!,\"ZC3R\")+SUMIFS(#REF!,#REF!,E$2,#REF!,E$3,#REF!,Таблица_LOGINS.accdb[[#This Row],[Логин SAP]],#REF!,\"ZC3R\")","v":{"$error":"#REF!"}},{"$f":"SUMIFS(#REF!,#REF!,E$2,#REF!,E$3,#REF!,Таблица_LOGINS.accdb[[#This Row],[Логин]],#REF!,\"ZC3R\")+SUMIFS(#REF!,#REF!,E$2,#REF!,E$3,#REF!,Таблица_LOGINS.accdb[[#This Row],[Логин SAP]],#REF!,\"ZC3R\")","v":{"$error":"#REF!"}},{"$error":"#REF!"},{"$error":"#REF!"},{"$f":"IFERROR(Таблица_LOGINS.accdb[[#This Row],[Mistakes of picking (conf)]]/Таблица_LOGINS.accdb[[#This Row],[Picked]],0)","v":0},{"$f":"IFERROR(Таблица_LOGINS.accdb[[#This Row],[Mistakes of packing (conf)]]/Таблица_LOGINS.accdb[[#This Row],[Packed]],0)","v":0},{"$f":"SUM(Таблица_LOGINS.accdb[[#This Row],[% mistake picking]:[% mistake packing]])","v":0},{"$error":"#REF!"},0]

{"sheet":"ММГГ","index":1,"n_rows":12,"n_cols":2,"rows_kept":12,"cut":false,"hidden":true,"merged":[]}
["Январь",2016]
["Февраль",2017]
["Март",2018]
["Апрель",2019]
["Май",2020]
["Июнь",2021]
["Июль",2022]
["Август",2023]
["Сентябрь",2024]
["Октябрь",2025]
["Ноябрь"]
["Декабрь"]